Workbook

Sheet Lâmina De RI
E1: Lâmina Individual de RI
B3: Ticker: | C3: GGBR4 | D3: ← Digitar Um Código
B4: Dta. Últ. Balanço: | C4: =_xll.ECONOMATICA($C$3,"Fin Statm Date") -> 2024-06-30 | D4: ← Não Modificar
B5: Dta. Últ. Cot.: | C5: =IF($C$6="",_xll.ECONOMATICA($C$3,"DATE OF LAST QUOTE"),$C$6) -> 2024-09-24 | D5: ← Não Modificar
B6: Dta. Pref. Últ. Cot.: | D6: ← Para alterar a data da Célula E2, basta digitar na Célula E3
B7: Unidades: | C7: Millions | D7: ← Selecionar Unidades
B9: Relação com Investidores
B11: Diário | G11: Volume x Fechamento | M11: Selecionar um Período (D = Dias; W = Semanas; M = Mês; Q = Trimestre; Y = Anos) → | N11: 36M
B13: Abertura | C13: =IFERROR(_xll.ECONOMATICA($C$3,"OPEN",,$C$5,,,,,,"FALSE"),"-") -> 18.22 | D13: Fechamento | E13: =IFERROR(_xll.ECONOMATICA($C$3,"CLOSE",,$C$5,,,,,,"FALSE"),"-") -> 18.48
B15: Máximo | C15: =IFERROR(_xll.ECONOMATICA($C$3,"HIGH",,$C$5,,,,,,"FALSE"),"-") -> 18.65 | D15: Variação % | E15: =IFERROR(_xll.ECONOMATICA($C$3,"return","1D",$C$5,,,,"decimal",,"FALSE"),"-") -> 0.04171364149
B16: Mínimo | C16: =IFERROR(_xll.ECONOMATICA($C$3,"LOW",,$C$5,,,,,,"FALSE"),"-") -> 18.1
B18: 7 Dias
B20: Máximo | C20: =IFERROR(_xll.ECONOMATICA($C$3,"HIGH","7D",$C$5,,,,,,"FALSE"),"-") -> 18.82 | D20: Variação % | E20: =IFERROR(_xll.ECONOMATICA($C$3,"return","7D",$C$5,,,,"decimal",,"FALSE"),"-") -> -0.01702127659
B21: Mínimo | C21: =IFERROR(_xll.ECONOMATICA($C$3,"LOW","7D",$C$5,,,,,,"FALSE"),"-") -> 17.63
B23: 4 Semanas
B25: Máximo | C25: =IFERROR(_xll.ECONOMATICA($C$3,"HIGH","4W",$C$5,,,,,,"FALSE"),"-") -> 18.95 | D25: Variação % | E25: =IFERROR(_xll.ECONOMATICA($C$3,"return","4w",$C$5,,,,"decimal",,"FALSE"),"-") -> 0.01149425287
B26: Mínimo | C26: =IFERROR(_xll.ECONOMATICA($C$3,"LOW","4W",$C$5,,,,,,"FALSE"),"-") -> 17.63
B28: 52 Semanas
B30: Máximo | C30: =IFERROR(_xll.ECONOMATICA($C$3,"HIGH","52W",$C$5,,,,,,"FALSE"),"-") -> 20.29992005 | D30: Variação % | E30: =IFERROR(_xll.ECONOMATICA($C$3,"return","52w",$C$5,,,,"decimal",,"FALSE"),"-") -> -0.0505646581
B31: Mínimo | C31: =IFERROR(_xll.ECONOMATICA($C$3,"LOW","52W",$C$5,,,,,,"FALSE"),"-") -> 16.56568818
C33: Volume $ | F33: Quantidade de Ações | I33: Quantidade de Negócios | L33: % Total de Ações
D34: =$C$7 -> Millions | G34: =$C$7 -> Millions | I34: =$C$7 -> Millions | L34: =$C$7 -> Millions
B36: No Dia | D36: =IFERROR(_xll.ECONOMATICA($C$3,"volume$","1d",$C$5,,,,C7,,"false","false"),"-") -> 310.864412 | G36: =IFERROR(_xll.ECONOMATICA($C$3,"#SHARES","1d",$C$5,,,,C7,,"false","false"),"-") -> 16.8524 | I36: =IFERROR(_xll.ECONOMATICA($C$3,"#TRADES","1d",$C$5,,,,C7,,"false","false"),"-") -> 0.030428
B37: Média 7 Dias | D37: =IFERROR(_xll.ECONOMATICA($C$3,"Hist Average","1w",$C$5,,,,C7,,"false","false",{"std.tec.cals=7"}),"-") -> 278.4970576 | G37: =IFERROR(_xll.ECONOMATICA($C$3,"Hist Average","1w",$C$5,,,,C7,,"false","false",{"std.tec.cals=6"}),"-") -> 15.23364 | I37: =IFERROR(_xll.ECONOMATICA($C$3,"Hist Average","1w",$C$5,,,,C7,,"false","false",{"std.tec.cals=5"}),"-") -> 0.0229162 | L37: Emitidas | M37: =IFERROR(_xll.ECONOMATICA($C$3,"Num of Shares",,$C$5,,,,C7,"false","false",,{"std.bac.totex=0"}),"-") -> 2108.48046 | N37: =M37/$M$37 -> 1
B38: Média 4 Semanas | D38: =IFERROR(_xll.ECONOMATICA($C$3,"Hist Average","4W",$C$5,,,,C7,,"false","false",{"std.tec.cals=7"}),"-") -> 228.0155428 | G38: =IFERROR(_xll.ECONOMATICA($C$3,"Hist Average","4W",$C$5,,,,C7,,"false","false",{"std.tec.cals=6"}),"-") -> 12.43409 | I38: =IFERROR(_xll.ECONOMATICA($C$3,"Hist Average","4W",$C$5,,,,C7,,"false","false",{"std.tec.cals=5"}),"-") -> 0.01900115 | L38: Outstanding | M38: =IFERROR(_xll.ECONOMATICA($C$3,"Num of Shares",,$C$5,,,,C7,"false","false",,),"-") -> 2103.651618 | N38: =M38/$M$37 -> 0.9977098
B39: Média 52 Semanas | D39: =IFERROR(_xll.ECONOMATICA($C$3,"Hist Average","52w",$C$5,,,,C7,,"false","false",{"std.tec.cals=7"}),"-") -> 217.1224258 | G39: =IFERROR(_xll.ECONOMATICA($C$3,"Hist Average","52w",$C$5,,,,C7,,"false","false",{"std.tec.cals=6"}),"-") -> 11.76157759 | I39: =IFERROR(_xll.ECONOMATICA($C$3,"Hist Average","52w",$C$5,,,,C7,,"false","false",{"std.tec.cals=5"}),"-") -> 0.02087816466 | L39: Tesouraria | M39: =IFERROR(_xll.ECONOMATICA($C$3,"Num of Shares",,$C$5,,,,C7,"false","false",,{"std.bac.totex=1"}),"-") -> 4.828842 | N39: =M39/$M$37 -> 0.002290200024
B42: Acionistas | M42: Data Referência: | N42: =_xll.ECONOMATICA($C$3,"ShrHoldrs AmendDt",,,,,,,"false","false") -> 2024-06-01
B44: Posição | C44: % Ações | D44: Nome
B45: 1 | C45: =IFERROR(_xll.ECONOMATICA($C$3,"ShrsHold",,"LATEST",,,,"decimal","false","false",,'Base Auxiliar'!D12),"-") -> - | D45: =IFERROR(_xll.ECONOMATICA($C$3,"MainShHol",,"LATEST",,,,,"false","false",,'Base Auxiliar'!C12),"-") -> -
B46: 2 | C46: =IFERROR(_xll.ECONOMATICA($C$3,"ShrsHold",,"LATEST",,,,"decimal","false","false",,'Base Auxiliar'!D13),"-") -> - | D46: =IFERROR(_xll.ECONOMATICA($C$3,"MainShHol",,"LATEST",,,,,"false","false",,'Base Auxiliar'!C13),"-") -> -
B47: 3 | C47: =IFERROR(_xll.ECONOMATICA($C$3,"ShrsHold",,"LATEST",,,,"decimal","false","false",,'Base Auxiliar'!D14),"-") -> - | D47: =IFERROR(_xll.ECONOMATICA($C$3,"MainShHol",,"LATEST",,,,,"false","false",,'Base Auxiliar'!C14),"-") -> -
B48: 4 | C48: =IFERROR(_xll.ECONOMATICA($C$3,"ShrsHold",,"LATEST",,,,"decimal","false","false",,'Base Auxiliar'!D15),"-") -> - | D48: =IFERROR(_xll.ECONOMATICA($C$3,"MainShHol",,"LATEST",,,,,"false","false",,'Base Auxiliar'!C15),"-") -> -
B49: 5 | C49: =IFERROR(_xll.ECONOMATICA($C$3,"ShrsHold",,"LATEST",,,,"decimal","false","false",,'Base Auxiliar'!D16),"-") -> - | D49: =IFERROR(_xll.ECONOMATICA($C$3,"MainShHol",,"LATEST",,,,,"false","false",,'Base Auxiliar'!C16),"-") -> -
B51: Obs.: As informações abaixo referentes às posições (long, short e doada) consolidadas das gestoras deverá ser extraida da Plataforma Web Economatica através da do relatório "Fundos ou Índices que têm esse Ativo - FQTA". Há um delay de 3 meses para as carteiras divulgadas, considerando a prerrogativa dos fundos em ocultar suas carteiras neste período. Para maiores informações, entre em contato com nosso suporte através do info@economatica.com.br
B54: Top 10 Gestoras - Fundos comprados em Ações (long) - Thousands | M54: Data Referência: Fevereiro/22
B56: Posição | C56: Gestora | I56: Posição $
B58: 1 | C58: Miles Capital Ltda. | J58: 144256.3838
B59: 2 | C59: Xp Gestão de Recursos Ltda | J59: 142406.0634
B60: 3 | C60: Fundação Petrobras de Seguridade Social - Petros | J60: 126201.192
B61: 4 | C61: Safra Asset Management Ltda. | J61: 118496.4729
B62: 5 | C62: BTG Pactual Wm Gestão de Recursos Ltda | J62: 115956.733
B63: 6 | C63: Itau Unibanco Asset Management Ltda. | J63: 107829.8366
B64: 7 | C64: Constellation Investimentos e Participações Ltda | J64: 80277.08031
B65: 8 | C65: Bogari Gestão de Investimentos Ltda. | J65: 78761.28216
B66: 9 | C66: Navi Capital Administradora e Gestora de Recursos Financeiros Ltda. | J66: 65354.24832
B67: 10 | C67: Apolo Investimentos Ltda | J67: 53180.54115
B69: Top 10 Gestoras - Fundos vendidos em Ações (short) - Thousands | M69: Data Referência: Fevereiro/22
B71: Posição | C71: Gestora | I71: Posição $
B73: 1 | C73: Itau Unibanco Asset Management Ltda. | J73: -63351.67017
B74: 2 | C74: Miles Capital Ltda. | J74: -50249.74308
B75: 3 | C75: Occam Brasil Gestão de Recursos Ltda. | J75: -20029.88436
B76: 4 | C76: Ibiuna Macro Gestão de Recursos Ltda. | J76: -18529.6284
B77: 5 | C77: Stk Capital Gestora de Recursos Ltda. | J77: -16410.36213
B78: 6 | C78: Ibiuna Ações Gestão de Recursos Ltda. | J78: -13915.12785
B79: 7 | C79: Itaverá Gestão de Recursos Ltda | J79: -9544.365
B80: 8 | C80: E2m Investimentos Ltda. | J80: -8821.149
B81: 9 | C81: Spx Gestão de Recursos Ltda | J81: -7159.24731
B82: 10 | C82: Apex Capital Ltda | J82: -6506.23194
B84: Top 10 Gestoras - Fundos Doados em Ações (Aluguel) - Thousands | M84: Data Referência: Fevereiro/22
B86: Posição | C86: Gestora | I86: Posição $
B88: 1 | C88: BTG Pactual Wm Gestão de Recursos Ltda | J88: 57246.54495
B89: 2 | C89: Fundação Dos Economiários Federais - Funcef | J89: 54623.14845
B90: 3 | C90: Squadra Investimentos - Gestão de Recursos Ltda. | J90: 35768.07285
B91: 4 | C91: Apolo Investimentos Ltda | J91: 27769.0605
B92: 5 | C92: Rps Capital Administradora de Recursos Ltda | J92: 22836.83169
B93: 6 | C93: Itau Dtvm S.A. | J93: 19285.00665
B94: 7 | C94: Bogari Gestão de Investimentos Ltda. | J94: 17922.16173
B95: 8 | C95: Itau Unibanco S.A. | J95: 14459.59128
B96: 9 | C96: Itau Unibanco Asset Management Ltda. | J96: 13906.22673
B97: 10 | C97: Constellation Investimentos e Participações Ltda | J97: 11738.24769
B99: Financials | J99: Balanço Histórico | M99: Data Referência: | N99: =LOOKUP(2,1/(LEN('Base Auxiliar'!$S:$S)>0),'Base Auxiliar'!$S:$S) -> 2024-12-31
B101: Indicadores de Valuation - 12 Meses
B102: P/L | C102: =IFERROR(_xll.ECONOMATICA($C$3,"P/E",,$C$5,,,,,,"false"),"") -> 7.666654179
B103: P/VPA | C103: =IFERROR(_xll.ECONOMATICA($C$3,"P/bv",,$C$5,,,,,,"false"),"") -> 0.705156249
B105: Indicadores de Rentabilidade - 12 Meses
B106: ROE % | C106: =IFERROR(_xll.ECONOMATICA($C$3,"ROE (avg)",,#REF!,,,,"decimal",,"false"),"") -> 
B107: ROA % | C107: =IFERROR(_xll.ECONOMATICA($C$3,"ROA",,#REF!,,,,"decimal",,"false"),"") -> 
B109: Indicadores Financeiros - 12 Meses
B110: Lucro por Ação | C110: =IFERROR(_xll.ECONOMATICA($C$3,"EPS","12M",#REF!,,,,,,"false"),"") -> 
B111: Valor Patr. por Ação | C111: =IFERROR(_xll.ECONOMATICA($C$3,"BVperShare",,#REF!,,,,,,"false"),"") -> 
B113: Índices Mercado
C115: No Dia | D115: No Mês | E115: No Ano | F115: 1M | G115: 3M | H115: 6M | I115: 12M | J115: 24M | K115: 36M | L115: 48M | M115: 60M | N115: 90M | P115: CÓDIGOS ECONOMATICA
B116: Ibovespa | C116: =_xll.ECONOMATICA($P$116:$P$119,"RETURN","1D",$C$5,,,,"DECIMAL","FALSE","FALSE") -> 0.01215753861 | D116: =_xll.ECONOMATICA($P$116:$P$119,"RETURN","MTD",$C$5,,,,"DECIMAL","FALSE","FALSE") -> -0.02829512159 | E116: =_xll.ECONOMATICA($P$116:$P$119,"RETURN","YTD",$C$5,,,,"DECIMAL","FALSE","FALSE") -> -0.01512446525 | F116: =_xll.ECONOMATICA($P$116:$P$119,"RETURN",F$115,$C$5,,,,"DECIMAL","FALSE","FALSE") -> -0.02546087276 | G116: =_xll.ECONOMATICA($P$116:$P$119,"RETURN",G$115,$C$5,,,,"DECIMAL","FALSE","FALSE") -> 0.07761771003 | H116: =_xll.ECONOMATICA($P$116:$P$119,"RETURN",H$115,$C$5,,,,"DECIMAL","FALSE","FALSE") -> 0.04037453425 | I116: =_xll.ECONOMATICA($P$116:$P$119,"RETURN",I$115,$C$5,,,,"DECIMAL","FALSE","FALSE") -> 0.1391889432 | J116: =_xll.ECONOMATICA($P$116:$P$119,"RETURN",J$115,$C$5,,,,"DECIMAL","FALSE","FALSE") -> 0.182961796 | K116: =_xll.ECONOMATICA($P$116:$P$119,"RETURN",K$115,$C$5,,,,"DECIMAL","FALSE","FALSE") -> 0.1666017406 | L116: =_xll.ECONOMATICA($P$116:$P$119,"RETURN",L$115,$C$5,,,,"DECIMAL","FALSE","FALSE") -> 0.3622610052 | M116: =_xll.ECONOMATICA($P$116:$P$119,"RETURN",M$115,$C$5,,,,"DECIMAL","FALSE","FALSE") -> 0.2722495337 | N116: =_xll.ECONOMATICA($P$116:$P$119,"RETURN",N$115,$C$5,,,,"DECIMAL","FALSE","FALSE") -> 1.069687564 | P116: IBOV
B117: Dólar | C117: -0.0134184612 | D117: -0.03288426859 | E117: 0.1299031252 | F117: -0.01015145757 | G117: 0.013 | H117: 0.09629837465 | I117: 0.1133907309 | J117: 0.04678799013 | K117: 0.02371105081 | L117: -0.01816419571 | M117: 0.3111382757 | N117: 0.7486733585 | P117: DOLOF
B118: CDI | C118: 0.0004016759794 | D118: 0.006732990441 | E118: 0.07813073921 | F118: 0.008711243256 | G118: 0.02628834543 | H118: 0.05228289335 | I118: 0.1113129662 | J118: 0.2608864393 | K118: 0.3964269903 | L118: 0.4374913468 | M118: 0.4892201915 | N118: 0.7723260366 | P118: CDI Acumulado
B119: SELIC | C119: 0.0004016753792 | D119: 0.006732988997 | E119: 0.0781307364 | F119: 0.008711241513 | G119: 0.02628834666 | H119: 0.05228289214 | I119: 0.1113129631 | J119: 0.2608864382 | K119: 0.3964270066 | L119: 0.4374913593 | M119: 0.4892202053 | N119: 0.7726015926 | P119: LFT Acumulado
B121: Ibovespa
H123: Pontos | J123: =IFERROR(_xll.ECONOMATICA("ibov","close",,$C$5,,,,,"false","false"),"-") -> 132155.76
H125: ="Volume - "&$C$7 -> Volume - Millions | J125: =IFERROR(_xll.ECONOMATICA("ibov","volume$",,$C$5,,,,$C$7,"false","false"),"-") -> 19787.47736
H127: % Melhor Segmento | J127: ='Base Ibov'!$M$4 -> 0.0617778016 | L127: ='Base Ibov'!$N$4 -> Siderurgia
H129: % Pior Segmento | J129: ='Base Ibov'!$M$5 -> -0.05037313433 | L129: ='Base Ibov'!N5 -> Transporte aéreo
H131: %Melhor e Pior Segmento é calculado pela méd. do desemp das ações que compoem o IBOV e seu respectivo seg.
B133: Índices Inflação
C135: =EOMONTH($C$5,-1) -> 2024-08-31 | D135: =EOMONTH($C$135,-1) -> 2024-07-31 | E135: =EOMONTH(D135,-1) -> 2024-06-30 | F135: =EOMONTH(E135,-1) -> 2024-05-31 | G135: 2024-04-30 | H135: 2024-03-31 | I135: 2024-02-29 | J135: 2024-01-31 | K135: 2023-12-31 | L135: 2023-11-30 | M135: 2023-10-31 | N135: 2023-09-30 | P135: CÓDIGOS ECONOMATICA
B136: IGP-DI | C136: =_xll.ECONOMATICA($P$136:$P$141,"RETURN","mtd",C$135,,,,"DECIMAL","FALSE","FALSE",,{"tc.dft=false";"tc.tp=0";"tc.pers=5";"tc.per=0"}) -> 0.001159612139 | D136: =_xll.ECONOMATICA($P$136:$P$141,"RETURN","mtd",D135,,,,"DECIMAL","FALSE","FALSE",,{"tc.dft=false";"tc.tp=0";"tc.pers=5";"tc.per=0"}) -> 0.008332535626 | E136: =_xll.ECONOMATICA($P$136:$P$141,"RETURN","mtd",E135,,,,"DECIMAL","FALSE","FALSE",,{"tc.dft=false";"tc.tp=0";"tc.pers=5";"tc.per=0"}) -> 0.004969161888 | F136: =_xll.ECONOMATICA($P$136:$P$141,"RETURN","mtd",F$135,,,,"DECIMAL","FALSE","FALSE",,{"tc.dft=false";"tc.tp=0";"tc.pers=5";"tc.per=0"}) -> 0.008706219505 | G136: =_xll.ECONOMATICA($P$136:$P$141,"RETURN","mtd",G$135,,,,"DECIMAL","FALSE","FALSE",,{"tc.dft=false";"tc.tp=0";"tc.pers=5";"tc.per=0"}) -> 0.00721343341 | H136: =_xll.ECONOMATICA($P$136:$P$141,"RETURN","mtd",H$135,,,,"DECIMAL","FALSE","FALSE",,{"tc.dft=false";"tc.tp=0";"tc.pers=5";"tc.per=0"}) -> -0.003034345845 | I136: =_xll.ECONOMATICA($P$136:$P$141,"RETURN","mtd",I$135,,,,"DECIMAL","FALSE","FALSE",,{"tc.dft=false";"tc.tp=0";"tc.pers=5";"tc.per=0"}) -> -0.004059602511 | J136: =_xll.ECONOMATICA($P$136:$P$141,"RETURN","mtd",J$135,,,,"DECIMAL","FALSE","FALSE",,{"tc.dft=false";"tc.tp=0";"tc.pers=5";"tc.per=0"}) -> -0.002686467529 | K136: =_xll.ECONOMATICA($P$136:$P$141,"RETURN","mtd",K$135,,,,"DECIMAL","FALSE","FALSE",,{"tc.dft=false";"tc.tp=0";"tc.pers=5";"tc.per=0"}) -> 0.006427973198 | L136: =_xll.ECONOMATICA($P$136:$P$141,"RETURN","mtd",L$135,,,,"DECIMAL","FALSE","FALSE",,{"tc.dft=false";"tc.tp=0";"tc.pers=5";"tc.per=0"}) -> 0.005037631272 | M136: =_xll.ECONOMATICA($P$136:$P$141,"RETURN","mtd",M$135,,,,"DECIMAL","FALSE","FALSE",,{"tc.dft=false";"tc.tp=0";"tc.pers=5";"tc.per=0"}) -> 0.005108426467 | N136: =_xll.ECONOMATICA($P$136:$P$141,"RETURN","mtd",N$135,,,,"DECIMAL","FALSE","FALSE",,{"tc.dft=false";"tc.tp=0";"tc.pers=5";"tc.per=0"}) -> 0.004457815632 | P136: IGPDI<BraNa>
B137: IGP-M | C137: 0.002853111964 | D137: 0.006075277473 | E137: 0.00814028688 | F137: 0.008908241443 | G137: 0.003091116563 | H137: -0.004668199501 | I137: -0.005172111845 | J137: 0.0007179255426 | K137: 0.007399972219 | L137: 0.005931109339 | M137: 0.004979433561 | N137: 0.003664602485 | P137: IGPM<BraNa>
B138: INCC | C138: 0.006973900452 | D138: 0.00722989345 | E138: 0.007147441638 | F138: 0.008623656129 | G138: 0.005157254745 | H138: 0.002794034877 | I138: 0.001315005728 | J138: 0.002699593499 | K138: 0.003065477344 | L138: 0.0006861936708 | M138: 0.001975780517 | N138: 0.003423552409 | P138: INCC-DI<BraNa>
B139: INPC | C139: -0.001399999922 | D139: 0.002599999932 | E139: 0.00250000001 | F139: 0.004600000068 | G139: 0.003699999999 | H139: 0.001899999905 | I139: 0.008100000055 | J139: 0.005699999929 | K139: 0.005499999999 | L139: 0.0009999999947 | M139: 0.001200000117 | N139: 0.001099999887 | P139: INPC<BraNa>
B140: IPC | C140: 0.001800000013 | D140: 0.0006000000194 | E140: 0.002600000031 | F140: 0.0008999999845 | G140: 0.003299999989 | H140: 0.002599999998 | I140: 0.00460000006 | J140: 0.004599999931 | K140: 0.003800000075 | L140: 0.00429999987 | M140: 0.003000000112 | N140: 0.002899999958 | P140: IPC<BraNa>
B141: IPCA | C141: -0.0002000000923 | D141: 0.00380000027 | E141: 0.002099999903 | F141: 0.004599999935 | G141: 0.003799999413 | H141: 0.001600000569 | I141: 0.008300000116 | J141: 0.004199999852 | K141: 0.005600000219 | L141: 0.002799999727 | M141: 0.002400000099 | N141: 0.002599999913 | P141: IPCA<BraNa>
B143: Comparativo Índices | M143: Selecionar um Período (D = Dias; W = Semanas; M = Mês; Q = Trimestre; Y = Anos) → | N143: 1Y
B145: Gráfico Base 100 | H145: Risco x Retorno
B163: Comparativo Peers
B165: =_xll.ECONOMATICA($P$166:$P$170,"name") ->  | C165: No Dia | D165: No Mês | E165: No Ano | F165: 1M | G165: 3M | H165: 6M | I165: 12M | J165: 24M | K165: 36M | L165: 48M | M165: 60M | N165: 90M | P165: CÓDIGOS ECONOMATICA
B166: Gerdau | C166: =_xll.ECONOMATICA($P$166:$P$170,"RETURN","1D",$C$5,,,,"DECIMAL","FALSE","FALSE") ->  | D166: =_xll.ECONOMATICA($P$166:$P$170,"RETURN","MTD",$C$5,,,,"DECIMAL","FALSE","FALSE") ->  | E166: =_xll.ECONOMATICA($P$166:$P$170,"RETURN","YTD",$C$5,,,,"DECIMAL","FALSE","FALSE") ->  | F166: =_xll.ECONOMATICA($P$166:$P$170,"RETURN",F$115,$C$5,,,,"DECIMAL","FALSE","FALSE") ->  | G166: =_xll.ECONOMATICA($P$166:$P$170,"RETURN",G$115,$C$5,,,,"DECIMAL","FALSE","FALSE") ->  | H166: =_xll.ECONOMATICA($P$166:$P$170,"RETURN",H$115,$C$5,,,,"DECIMAL","FALSE","FALSE") ->  | I166: =_xll.ECONOMATICA($P$166:$P$170,"RETURN",I$115,$C$5,,,,"DECIMAL","FALSE","FALSE") ->  | J166: =_xll.ECONOMATICA($P$166:$P$170,"RETURN",J$115,$C$5,,,,"DECIMAL","FALSE","FALSE") ->  | K166: =_xll.ECONOMATICA($P$166:$P$170,"RETURN",K$115,$C$5,,,,"DECIMAL","FALSE","FALSE") ->  | L166: =_xll.ECONOMATICA($P$166:$P$170,"RETURN",L$115,$C$5,,,,"DECIMAL","FALSE","FALSE") ->  | M166: =_xll.ECONOMATICA($P$166:$P$170,"RETURN",M$115,$C$5,,,,"DECIMAL","FALSE","FALSE") ->  | N166: =_xll.ECONOMATICA($P$166:$P$170,"RETURN",N$115,$C$5,,,,"DECIMAL","FALSE","FALSE") ->  | P166: =IF($C$3='Base Ibov'!U7,$C$3,'Base Ibov'!U7) -> 
B167: Sid Nacional | C167: 0.09386281588 | D167: 0.02192242833 | E167: -0.3500206661 | F167: -0.0106122449 | G167: -0.04642014162 | H167: -0.1947956078 | I167: 0.1066024341 | J167: 0.3454217336 | K167: -0.3805897032 | L167: 0.1840351118 | M167: 0.3788216449 | N167: 1.051996224 | P167: =IF($C$3='Base Ibov'!U8,$C$3,'Base Ibov'!U8) -> CSNA3
B168: Gerdau Met | C168: 0.03474903475 | D168: 0.02192564347 | E168: 0.01662210974 | F168: 0.01611374407 | G168: 0.03893373953 | H168: 0.09108557771 | I168: 0.06527524278 | J168: 0.2559172935 | K168: 0.3479090031 | L168: 0.8853961087 | M168: 1.809906285 | N168: 2.676721614 | P168: =IF($C$3='Base Ibov'!U9,$C$3,'Base Ibov'!U9) -> GOAU4
B169: Usiminas | C169: 0.07678571429 | D169: -0.03210272873 | E169: -0.3285279777 | F169: -0.08358662614 | G169: -0.2158647594 | H169: -0.3854211737 | I169: -0.05341804444 | J169: -0.1406098755 | K169: -0.5714954244 | L169: -0.2822136336 | M169: -0.04626774385 | N169: 0.9002921365 | P169: =IF($C$3='Base Ibov'!U10,$C$3,'Base Ibov'!U10) -> USIM5
B170: Ferbasa | C170: 0.04438642298 | D170: -0.01166001052 | E170: -0.3022016963 | F170: -0.03533282464 | G170: 0.02480545983 | H170: -0.06779761093 | I170: -0.3148087657 | J170: -0.3083917656 | K170: -0.3070620004 | L170: 1.307123527 | M170: 1.366945055 | N170: 3.982055549 | P170: =IF($C$3='Base Ibov'!U11,$C$3,'Base Ibov'!U11) -> FESA4
M172: Selecionar um Período (D = Dias; W = Semanas; M = Mês; Q = Trimestre; Y = Anos) → | N172: 1Y
B173: Gráfico Base 100 | H173: Risco x Retorno
B191: Taxa Média de Aluguel | M191: Selecionar um Período (D = Dias; W = Semanas; M = Mês; Q = Trimestre; Y = Anos) → | N191: 12M

Sheet Base Auxiliar
F1: Planilha Auxiliar Não Modificar
B3: Referências | F3: FECHAMENTO e VOLUME | M3: BASE 100 | S3: ATIVO X PASSIVO | AB3: RISCO X RETORNO | AG3: RISCO X RETORNO PEERS | AK3: RETORNO PEERS | AR3: RETORNO PEERS | AU3: RETORNO PEERS
B4: Ticker | C4: ='Lâmina De RI'!C$3 -> GGBR4 | M4: Máx | N4: =ROUNDUP(MAX($N$11:$Q$1013),0)+5 -> 124 | AK4: Máx | AL4: =ROUNDUP(MAX($AL$10:$AP$1013),0)+5 -> 176 | AR4: Máx | AS4: =ROUNDUP(MAX($AS$12:$AS$1013),0)+1 -> 3 | AU4: Máx | AV4: =ROUNDUP(MAX($AV$12:$AV$1013),0)+5000 -> 141005
B5: Data Fim | C5: ='Lâmina De RI'!C$5 -> 2024-09-24 | M5: Mín | N5: =ROUNDUP(MIN($N$11:$Q$1013),0)-5 -> 82 | AK5: Mín | AL5: =ROUNDUP(MIN($AL$12:$AP$1013),0)-5 -> 82 | AR5: Mín | AS5: =ROUNDDOWN(MIN($AS$12:$AS$1013),0) -> 0 | AU5: Mín | AV5: =ROUNDDOWN(MIN($AV$12:$AV$1013),0)-5000 -> 108155
B6: UNIDADES | C6: ='Lâmina De RI'!$C$7 -> Millions | M6: VBA | N6: =AtualizarLimitesGrafico("RI","BASE100",$N$5,$N$4) ->  | AK6: VBA | AL6: =AtualizarLimitesGrafico("RI","BASE100PEERS",$AL$5,$AL$4) ->  | AR6: VBA | AS6: =AtualizarLimitesGrafico("RI","TXALUGUEL",$AS$5,$AS$4) ->  | AU6: VBA | AV6: =AtualizarLimitesGrafico("RI","IBOV",$AV$5,$AV$4) -> 
B7: INTERVALO | C7: W | AK7: ='Lâmina De RI'!$N$172 -> 1Y | AR7: ='Lâmina De RI'!$N$191 -> 12M | AU7: ='Lâmina De RI'!$N$191 -> 12M
F8: ='Lâmina De RI'!N$11 -> 36M | J8: Data Inicio | K8: =F11-100 -> 2021-06-16 | M8: ='Lâmina De RI'!$N$143 -> 1Y | O8: IBOV | P8: CDI Acumulado | Q8: DOLOF | S8: 5Y | AB8: ='Lâmina De RI'!$N$143 -> 1Y | AG8: =AK7 -> 1Y | AL8: =TRANSPOSE($AG$10:$AG$14) ->  | AM8: CSNA3 | AN8: GOAU4 | AO8: USIM5 | AP8: 0 | AS8: =$C$4 -> GGBR4 | AV8: IBOV
F9: =_xll.ECONOMATICA($C$4,"close",,$C$5,$F$8,$C$7,,,"true","true","Fechamento") ->  | G9: Fechamento | H9: =_xll.ECONOMATICA($C$4,"Volume$",,$C$5,$F$8,$C$7,,$C$6,"FALSE","true","Volume") ->  | I9: Volume Médio 3M | J9: =_xll.ECONOMATICA($C$4,"Hist Average","3M",$C$5,$K$8,$C$7,"ORIGINAL CURRENCY",$C$6,"true","true","Volume Médio 3M",{"std.tec.cals=7"}) ->  | K9: Volume Médio 3M | M9: =_xll.ECONOMATICA($C$4,"close",,$C$5,$M$8,"d","REBASED TO 100",,"true","true","Fechamento") ->  | N9: Fechamento | O9: =_xll.ECONOMATICA(O8,"close",,$C$5,$M$8,"d","REBASED TO 100",,"FALSE","true","Fechamento") ->  | P9: =_xll.ECONOMATICA(P8,"close",,$C$5,$M$8,"d","REBASED TO 100",,"FALSE","true","Fechamento") ->  | Q9: =_xll.ECONOMATICA(Q8,"close",,$C$5,$M$8,"d","REBASED TO 100",,"FALSE","true","Fechamento") ->  | S9: =_xll.ECONOMATICA($C$4,"Total Assets",,$C$5,$S$8,"Y",,$C$6,"true","true","ATIVO TOTAL") ->  | T9: ATIVO TOTAL | U9: PASSIVO TOTAL | V9: =_xll.ECONOMATICA($C$4,"Stock Eq Par",,$C$5,$S$8,"Y",,$C$6,"FALSE","true","Patrimonio Liquido") ->  | W9: =_xll.ECONOMATICA($C$4,"Curr Assets",,$C$5,$S$8,"Y",,$C$6,"FALSE","true","Ativo Circulante") ->  | X9: =_xll.ECONOMATICA($C$4,"Non Curr Assets",,$C$5,$S$8,"Y",,$C$6,"FALSE","true","Ativo Não Circulante") ->  | Y9: =_xll.ECONOMATICA($C$4,"Curr Liab",,$C$5,$S$8,"Y",,$C$6,"FALSE","true","Passivo Circulante") ->  | Z9: =_xll.ECONOMATICA($C$4,"NCurLiab",,$C$5,$S$8,"Y",,$C$6,"FALSE","true","Passivo Não Circulante") ->  | AC9: =_xll.ECONOMATICA($AB$10:$AB$13,"name") ->  | AD9: =_xll.ECONOMATICA($AB$10:$AB$13,"risk",$AB$8,$C$5,,,,,,"true","RISCO") ->  | AE9: =_xll.ECONOMATICA($AB$10:$AB$13,"RETURN",$AB$8,$C$5,,,,,,"true","RETORNO") ->  | AH9: =_xll.ECONOMATICA($AG$10:$AG$14,"risk","12m",$C$5,,,,,,"true","RISCO") ->  | AI9: =_xll.ECONOMATICA($AG$10:$AG$14,"RETURN","12m",$C$5,,,,,,"true","RETORNO") ->  | AK9: =_xll.ECONOMATICA(AL$8,"CLOSE",,$C$5,"12M","D","REBASED TO 100",,"TRUE","TRUE","RETORNO") ->  | AL9: RETORNO | AM9: =IF(AM8="","",_xll.ECONOMATICA(AM8,"CLOSE",,$C$5,"12M","D","REBASED TO 100",,"FALSE","TRUE","RETORNO")) ->  | AN9: =IF(AN8="","",_xll.ECONOMATICA(AN8,"CLOSE",,$C$5,"12M","D","REBASED TO 100",,"FALSE","TRUE","RETORNO")) ->  | AO9: =IF(AO8="","",_xll.ECONOMATICA(AO8,"CLOSE",,$C$5,"12M","D","REBASED TO 100",,"FALSE","TRUE","RETORNO")) ->  | AP9: =IF(AP8="","",_xll.ECONOMATICA(AP8,"CLOSE",,$C$5,"12M","D","REBASED TO 100",,"FALSE","TRUE","RETORNO")) ->  | AR9: =_xll.ECONOMATICA(AS$8,"AvgFeeLndr-inPer",,'Base Auxiliar'!$C$5,'Lâmina De RI'!$N$191,"D",,,"TRUE","TRUE","TX ALUGUEL (MÉDIA - BALCÃO)") ->  | AS9: TX ALUGUEL (MÉDIA - BALCÃO) | AU9: =_xll.ECONOMATICA("ibov","close",,'Base Auxiliar'!$C$5,'Lâmina De RI'!$N$191,"W",,,"TRUE","TRUE","PONTOS IBOV") ->  | AV9: PONTOS IBOV
B10: Acionistas | G10: GGBR4 | H10: GGBR4 | K10: GGBR4 | N10: GGBR4 | O10: IBOV | P10: CDI Acumulado | Q10: DOLOF | T10: GGBR4 | U10: =$T$10 -> GGBR4 | V10: GGBR4 | W10: GGBR4 | X10: GGBR4 | Y10: GGBR4 | Z10: GGBR4 | AB10: =$C$4 -> GGBR4 | AC10: Gerdau | AD10: 26.01529766 | AE10: -4.391156626 | AG10: ='Lâmina De RI'!P166 ->  | AH10: 26.01529766 | AI10: -4.391156626 | AL10: GGBR4 | AM10: CSNA3 | AN10: GOAU4 | AO10: USIM5 | AP10: 0 | AS10: GGBR4 | AV10: IBOV
B11: Posição | C11: Opcional 1 (Nome) | D11: Opcional 2 (%) | F11: 2021-09-24 | G11: 15.61040851 | H11: 2630.054946 | I11: =IFERROR(VLOOKUP(F11,$J$11:$K$607,2,0),NA()) -> 1948.752636 | J11: 2021-06-18 | M11: 2023-09-22 | N11: 100 | O11: 100 | P11: 100 | Q11: 100 | S11: 2019-12-31 | T11: 54002.97 | U11: =IF(S11="","",IF(T11="",NA(),T11-V11)) -> 27047.269 | V11: 26955.701 | W11: 18235.713 | X11: 35767.257 | Y11: 7424.537 | Z11: 19405.306 | AB11: IBOV | AC11: Ibovespa | AD11: 12.75797713 | AE11: 13.91889432 | AG11: ='Lâmina De RI'!P167 -> CSNA3 | AH11: 35.99183315 | AI11: 10.66024342
B12: ='Lâmina De RI'!B58 -> 1 | C12: ="std.cac.en="&B12 -> std.cac.en=1 | D12: ="std.cac.ccacq=2"&";"&"std.cac.fam=1"&";"&"std.cac.nm="&B12 -> std.cac.ccacq=2;std.cac.fam=1;std.cac.nm=1 | F12: 2021-10-01 | G12: 16.47808237 | H12: 2604.735137 | I12: 1964.938293 | J12: 2021-06-25 | M12: 2023-09-25 | N12: 100.5770816 | O12: 99.92756574 | P12: 100.0472793 | Q12: 100.966803 | S12: 2020-12-31 | T12: 63123.009 | U12: =IF(S12="","",IF(T12="",NA(),T12-V12)) -> 32262.738 | V12: 30860.271 | W12: 23409.453 | X12: 39713.556 | Y12: 11482.143 | Z12: 20555.656 | AB12: DOLOF | AC12: Dolar Ptax Venda | AD12: 10.8124523 | AE12: 11.33907309 | AG12: ='Lâmina De RI'!P168 -> GOAU4 | AH12: 23.75168097 | AI12: 6.527524278 | AK12: 2023-09-22 | AL12: 100 | AM12: 100 | AN12: 100 | AO12: 100 | AR12: 2023-09-22 | AS12: 1.52 | AU12: 2023-09-22 | AV12: 116008.64
B13: ='Lâmina De RI'!B59 -> 2 | C13: ="std.cac.en="&B13 -> std.cac.en=2 | D13: ="std.cac.ccacq=2"&";"&"std.cac.fam=1"&";"&"std.cac.nm="&B13 -> std.cac.ccacq=2;std.cac.fam=1;std.cac.nm=2 | F13: 2021-10-08 | G13: 16.16874653 | H13: 1583.235813 | I13: 1988.496719 | J13: 2021-07-02 | M13: 2023-09-26 | N13: 100.700742 | O13: 98.43528034 | P13: 100.0945808 | Q13: 101.1927296 | S13: 2021-12-31 | T13: 73814.613 | U13: 31210.331 | V13: 42604.282 | W13: 32640.477 | X13: 41174.136 | Y13: 14036.814 | Z13: 16962.15 | AB13: CDI Acumulado | AC13: CDI | AD13: 0.04494410156 | AE13: 11.13129662 | AG13: ='Lâmina De RI'!P169 -> USIM5 | AH13: 43.0264956 | AI13: -5.341804444 | AK13: 2023-09-25 | AL13: 100.5770816 | AM13: 99.58677686 | AN13: 100.4456328 | AO13: 98.63429439 | AR13: 2023-09-25 | AS13: 1.52 | AU13: 2023-09-29 | AV13: 116565.17
B14: ='Lâmina De RI'!B60 -> 3 | C14: std.cac.en=3 | D14: std.cac.ccacq=2;std.cac.fam=1;std.cac.nm=3 | F14: 2021-10-15 | G14: 16.75767438 | H14: 1566.705043 | I14: 1938.8517 | J14: 2021-07-09 | M14: 2023-09-27 | N14: 100.7831822 | O14: 98.55046141 | P14: 100.1419047 | Q14: 102.356964 | S14: 2022-12-31 | T14: 73798.652 | U14: 27682.458 | V14: 46116.194 | W14: 31257.422 | X14: 42541.23 | Y14: 13462.581 | Z14: 14037.878 | AK14: 2023-09-26 | AL14: 100.700742 | AM14: 99.17355372 | AN14: 99.64349376 | AO14: 98.17905918 | AR14: 2023-09-26 | AS14: 1.52 | AU14: 2023-10-06 | AV14: 114169.63
B15: ='Lâmina De RI'!B61 -> 4 | C15: std.cac.en=4 | D15: std.cac.ccacq=2;std.cac.fam=1;std.cac.nm=4 | F15: 2021-10-22 | G15: 15.90105205 | H15: 1848.448469 | I15: 1950.146651 | J15: 2021-07-16 | M15: 2023-09-28 | N15: 100.1648805 | O15: 99.76046612 | P15: 100.1892511 | Q15: 102.7355438 | S15: 2023-12-31 | T15: 74885.144 | U15: 25826.185 | V15: 49058.959 | W15: 29197.937 | X15: 45687.207 | Y15: 11284.612 | Z15: 14361.669 | AK15: 2023-09-27 | AL15: 100.7831822 | AM15: 98.59504132 | AN15: 100.5347594 | AO15: 98.93778452 | AR15: 2023-09-27 | AS15: 1.43 | AU15: 2023-10-13 | AV15: 115754.08
B16: ='Lâmina De RI'!B62 -> 5 | C16: std.cac.en=5 | D16: std.cac.ccacq=2;std.cac.fam=1;std.cac.nm=5 | F16: 2021-10-29 | G16: 16.00218107 | H16: 2332.344983 | I16: 1988.210017 | J16: 2021-07-23 | M16: 2023-09-29 | N16: 99.4641385 | O16: 100.4797315 | P16: 100.2366199 | Q16: 101.9234292 | S16: 2024-12-31 | T16: 82399.264 | U16: 27268.955 | V16: 55130.309 | W16: 31828.12 | X16: 50571.144 | Y16: 11246.915 | Z16: 15810.443 | AK16: 2023-09-28 | AL16: 100.1648805 | AM16: 99.4214876 | AN16: 100.2673797 | AO16: 99.84825493 | AR16: 2023-09-28 | AS16: 1.35 | AU16: 2023-10-20 | AV16: 113155.28
B17: ='Lâmina De RI'!B63 -> 6 | C17: std.cac.en=6 | D17: std.cac.ccacq=2;std.cac.fam=1;std.cac.nm=6 | F17: 2021-11-05 | G17: 14.58042595 | H17: 1477.52138 | I17: 1923.522299 | J17: 2021-07-30 | M17: 2023-10-02 | N17: 98.02143446 | O17: 99.17956111 | P17: 100.2840109 | Q17: 103.1507602 | AK17: 2023-09-29 | AL17: 99.4641385 | AM17: 100.3305785 | AN17: 99.37611408 | AO17: 100.7587253 | AR17: 2023-09-29 | AS17: 1.35 | AU17: 2023-10-27 | AV17: 113301.35
B18: ='Lâmina De RI'!B64 -> 7 | C18: std.cac.en=7 | D18: std.cac.ccacq=2;std.cac.fam=1;std.cac.nm=7 | F18: 2021-11-12 | G18: 16.17924068 | H18: 1887.723635 | I18: 1933.393222 | J18: 2021-08-06 | M18: 2023-10-03 | N18: 96.00164881 | O18: 97.76775247 | P18: 100.3314243 | Q18: 104.007653 | AK18: 2023-10-02 | AL18: 98.02143446 | AM18: 99.33884298 | AN18: 98.48484849 | AO18: 99.69650986 | AR18: 2023-10-02 | AS18: 1.29 | AU18: 2023-11-03 | AV18: 118159.97
B19: ='Lâmina De RI'!B65 -> 8 | C19: std.cac.en=8 | D19: std.cac.ccacq=2;std.cac.fam=1;std.cac.nm=8 | F19: 2021-11-19 | G19: 15.79068411 | H19: 1161.530797 | I19: 1840.910552 | J19: 2021-08-13 | M19: 2023-10-04 | N19: 94.80626546 | O19: 97.93016279 | P19: 100.3788603 | Q19: 104.8747227 | AK19: 2023-10-03 | AL19: 96.00164881 | AM19: 97.52066116 | AN19: 96.25668449 | AO19: 98.48254932 | AR19: 2023-10-03 | AS19: 1.29 | AU19: 2023-11-10 | AV19: 120568.14
B20: ='Lâmina De RI'!B66 -> 9 | C20: std.cac.en=9 | D20: std.cac.ccacq=2;std.cac.fam=1;std.cac.nm=9 | F20: 2021-11-26 | G20: 16.27478738 | H20: 1515.370653 | I20: 1832.551283 | J20: 2021-08-20 | M20: 2023-10-05 | N20: 93.44600165 | O20: 97.65141631 | P20: 100.4263187 | Q20: 105.2553378 | AK20: 2023-10-04 | AL20: 94.80626546 | AM20: 95.53719008 | AN20: 95.00891266 | AO20: 97.42033384 | AR20: 2023-10-04 | AS20: 1.34 | AU20: 2023-11-17 | AV20: 124773.21
B21: ='Lâmina De RI'!B67 -> 10 | C21: std.cac.en=10 | D21: std.cac.ccacq=2;std.cac.fam=1;std.cac.nm=10 | F21: 2021-12-03 | G21: 17.73983673 | H21: 2074.61115 | I21: 1877.216772 | J21: 2021-08-27 | M21: 2023-10-06 | N21: 93.44600165 | O21: 98.41476462 | P21: 100.4737995 | Q21: 105.6725896 | AK21: 2023-10-05 | AL21: 93.44600165 | AM21: 94.7107438 | AN21: 93.85026738 | AO21: 96.20637329 | AR21: 2023-10-05 | AS21: 1.33 | AU21: 2023-11-24 | AV21: 125517.27
F22: 2021-12-10 | G22: 18.84817842 | H22: 1584.204224 | I22: 1898.639286 | J22: 2021-09-03 | M22: 2023-10-09 | N22: 92.86892003 | O22: 99.2650806 | P22: 100.5213026 | Q22: 105.1596751 | AK22: 2023-10-06 | AL22: 93.44600165 | AM22: 95.12396694 | AN22: 93.67201426 | AO22: 96.05462823 | AR22: 2023-10-06 | AS22: 1.26 | AU22: 2023-12-01 | AV22: 128184.91
F23: 2021-12-17 | G23: 18.47873119 | H23: 1764.521489 | I23: 1848.539055 | J23: 2021-09-10 | M23: 2023-10-10 | N23: 93.11624073 | O23: 100.6278067 | P23: 100.5688284 | Q23: 103.5232338 | AK23: 2023-10-09 | AL23: 92.86892003 | AM23: 94.21487603 | AN23: 93.22638146 | AO23: 94.99241275 | AR23: 2023-10-09 | AS23: 1.18 | AU23: 2023-12-08 | AV23: 127093.57
F24: 2021-12-24 | G24: 17.16655655 | H24: 1139.661925 | I24: 1733.893438 | J24: 2021-09-17 | K24: 1907.877307 | M24: 2023-10-11 | N24: 92.82769992 | O24: 100.8982952 | P24: 100.6163765 | Q24: 102.7782866 | AK24: 2023-10-10 | AL24: 93.11624073 | AM24: 96.03305785 | AN24: 93.5828877 | AO24: 95.59939302 | AR24: 2023-10-10 | AS24: 1.08 | AU24: 2023-12-15 | AV24: 130197.1
B25: Nome | C25: Índices | F25: 2021-12-31 | G25: 17.36401972 | H25: 608.893315 | I25: 1580.367144 | J25: 2021-09-24 | K25: 1948.752636 | M25: 2023-10-12 | AK25: 2023-10-11 | AL25: 92.82769992 | AM25: 97.27272727 | AN25: 93.76114082 | AO25: 96.20637329 | AR25: 2023-10-11 | AS25: 1.04 | AU25: 2023-12-22 | AV25: 132752.93
B26: Ibovespa | C26: IBOV | F26: 2022-01-07 | G26: 17.47230598 | H26: 1407.886524 | I26: 1566.878737 | J26: 2021-10-01 | K26: 1964.938293 | M26: 2023-10-13 | N26: 92.04451773 | O26: 99.78056807 | P26: 100.6639471 | Q26: 103.04085 | AK26: 2023-10-12 | AR26: 2023-10-12 | AU26: 2023-12-29 | AV26: 134185.24
B27: Ibrasil | C27: IBRA<XBSP> | F27: 2022-01-14 | G27: 18.01373726 | H27: 1365.92708 | I27: 1551.434279 | J27: 2021-10-08 | K27: 1988.496719 | M27: 2023-10-16 | N27: 92.91014015 | O27: 100.4527335 | P27: 100.7115403 | Q27: 103.0266023 | AK27: 2023-10-13 | AL27: 92.04451773 | AM27: 96.19834711 | AN27: 92.60249554 | AO27: 94.99241275 | AR27: 2023-10-13 | AS27: 0.98 | AU27: 2024-01-05 | AV27: 132022.92
B28: Ibrx Brasil | C28: IBXX<XBSP> | F28: 2022-01-21 | G28: 17.49141532 | H28: 1280.77719 | I28: 1507.767257 | J28: 2021-10-15 | K28: 1938.8517 | M28: 2023-10-17 | N28: 92.04451773 | O28: 99.9136185 | P28: 100.7591559 | Q28: 102.5503246 | AK28: 2023-10-16 | AL28: 92.91014015 | AM28: 96.36363636 | AN28: 93.67201426 | AO28: 95.14415781 | AR28: 2023-10-16 | AS28: 0.98 | AU28: 2024-01-12 | AV28: 130987.67
B29: Ibrx 50 | C29: IBXL<XBSP> | F29: 2022-01-28 | G29: 17.87997189 | H29: 1550.628317 | I29: 1447.635206 | J29: 2021-10-22 | K29: 1950.146651 | M29: 2023-10-18 | N29: 89.28276999 | O29: 98.31995272 | P29: 100.806794 | Q29: 102.9248336 | AK29: 2023-10-17 | AL29: 92.04451773 | AM29: 96.28099174 | AN29: 92.86987522 | AO29: 94.08194234 | AR29: 2023-10-17 | AS29: 0.98 | AU29: 2024-01-19 | AV29: 127635.65
B30: Ico2 | C30: ICO2<XBSP> | F30: 2022-02-04 | G30: 18.33222625 | H30: 1132.297413 | I30: 1421.079516 | J30: 2021-10-29 | K30: 1988.210017 | M30: 2023-10-19 | N30: 89.15910965 | O30: 98.27224938 | P30: 100.8544547 | Q30: 102.8678431 | AK30: 2023-10-18 | AL30: 89.28276999 | AM30: 93.38842975 | AN30: 90.01782531 | AO30: 93.7784522 | AR30: 2023-10-18 | AS30: 0.98 | AU30: 2024-01-26 | AV30: 128967.32
B31: Iconsumo | C31: ICON<XBSP> | F31: 2022-02-11 | G31: 17.89271145 | H31: 1940.051679 | I31: 1425.10475 | J31: 2021-11-05 | K31: 1923.522299 | M31: 2023-10-20 | N31: 88.41714757 | O31: 97.5403901 | P31: 100.9021379 | Q31: 102.8434186 | AK31: 2023-10-19 | AL31: 89.15910965 | AM31: 92.97520661 | AN31: 90.46345811 | AO31: 92.56449165 | AR31: 2023-10-19 | AS31: 0.98 | AU31: 2024-02-02 | AV31: 127182.25
B32: I Dividendos | C32: IDIV<XBSP> | F32: 2022-02-18 | G32: 16.2684176 | H32: 1448.298967 | I32: 1447.163841 | J32: 2021-11-12 | K32: 1933.393222 | M32: 2023-10-23 | N32: 89.69497115 | O32: 97.22079321 | P32: 100.9498436 | Q32: 102.1025422 | AK32: 2023-10-20 | AL32: 88.41714757 | AM32: 89.91735537 | AN32: 89.39393939 | AO32: 90.28831563 | AR32: 2023-10-20 | AS32: 0.98 | AU32: 2024-02-09 | AV32: 128025.7
B33: Ieeletrica | C33: IEEX<XBSP> | F33: 2022-02-25 | G33: 16.21745936 | H33: 2102.437226 | I33: 1492.322808 | J33: 2021-11-19 | K33: 1840.910552 | M33: 2023-10-24 | N33: 88.82934872 | O33: 98.06329942 | P33: 100.9975719 | Q33: 101.9010401 | AK33: 2023-10-23 | AL33: 89.69497115 | AM33: 90.49586777 | AN33: 90.99821747 | AO33: 89.98482549 | AR33: 2023-10-23 | AS33: 0.98 | AU33: 2024-02-16 | AV33: 128725.88
B34: Ifinanceiro | C34: IFNC<XBSP> | F34: 2022-03-04 | G34: 18.7271526 | H34: 1799.504563 | I34: 1471.160762 | J34: 2021-11-26 | K34: 1832.551283 | M34: 2023-10-25 | N34: 88.4995878 | O34: 97.25997133 | P34: 101.0453228 | Q34: 101.7300686 | AK34: 2023-10-24 | AL34: 88.82934872 | AM34: 91.98347107 | AN34: 90.01782531 | AO34: 90.59180577 | AR34: 2023-10-24 | AS34: 0.97 | AU34: 2024-02-23 | AV34: 129418.73
B35: Igovernanca | C35: IGCX<XBSP> | F35: 2022-03-11 | G35: 19.38375759 | H35: 2282.99881 | I35: 1524.914192 | J35: 2021-12-03 | K35: 1877.216772 | M35: 2023-10-26 | N35: 89.90107172 | O35: 98.93819978 | P35: 101.0930962 | Q35: 101.8806863 | AK35: 2023-10-25 | AL35: 88.4995878 | AM35: 91.23966942 | AN35: 89.75044563 | AO35: 89.07435508 | AR35: 2023-10-25 | AS35: 0.97 | AU35: 2024-03-01 | AV35: 129180.37
B36: Igc - Nm | C36: IGNM<XBSP> | F36: 2022-03-18 | G36: 19.55694139 | H36: 2522.902393 | I36: 1583.251185 | J36: 2021-12-10 | K36: 1898.639286 | M36: 2023-10-27 | N36: 90.02473207 | O36: 97.66630313 | P36: 101.1408922 | Q36: 100.7103458 | AK36: 2023-10-26 | AL36: 89.90107172 | AM36: 93.30578512 | AN36: 91.26559715 | AO36: 90.74355083 | AR36: 2023-10-26 | AS36: 0.97 | AU36: 2024-03-08 | AV36: 127070.79
B37: Igc Trade | C37: IGCT<XBSP> | F37: 2022-03-25 | G37: 19.61466933 | H37: 2209.428926 | I37: 1665.540954 | J37: 2021-12-17 | K37: 1848.539055 | M37: 2023-10-30 | N37: 90.18961253 | O37: 97.002706 | P37: 101.1887109 | Q37: 101.9193585 | AK37: 2023-10-27 | AL37: 90.02473207 | AM37: 93.96694215 | AN37: 91.26559715 | AO37: 94.53717754 | AR37: 2023-10-27 | AS37: 0.96 | AU37: 2024-03-15 | AV37: 126741.81
B38: Imat Basicos | C38: IMAT<XBSP> | F38: 2022-04-01 | G38: 19.65315462 | H38: 1871.660633 | I38: 1762.676902 | J38: 2021-12-24 | K38: 1733.893438 | M38: 2023-10-31 | N38: 89.73619126 | O38: 97.53038222 | P38: 101.2365521 | Q38: 102.9390812 | AK38: 2023-10-30 | AL38: 90.18961253 | AM38: 95.04132231 | AN38: 91.71122995 | AO38: 98.78603945 | AR38: 2023-10-30 | AS38: 0.96 | AU38: 2024-03-22 | AV38: 127027.1
B39: Imobiliario | C39: IMOB<XBSP> | F39: 2022-04-08 | G39: 18.85137775 | H39: 1759.000774 | I39: 1789.68569 | J39: 2021-12-31 | K39: 1580.367144 | M39: 2023-11-01 | N39: 91.42621599 | O39: 99.17619929 | P39: 101.284416 | Q39: 102.1636034 | AK39: 2023-10-31 | AL39: 89.73619126 | AM39: 97.19008264 | AN39: 92.06773619 | AO39: 100.3034901 | AR39: 2023-10-31 | AS39: 0.96 | AU39: 2024-03-29 | AV39: 128106.1
B40: Industrial | C40: INDX<XBSP> | F40: 2022-04-15 | G40: 18.87062039 | H40: 855.692777 | I40: 1750.436897 | J40: 2022-01-07 | K40: 1566.878737 | M40: 2023-11-02 | AK40: 2023-11-01 | AL40: 91.42621599 | AM40: 98.92561984 | AN40: 93.67201426 | AO40: 102.276176 | AR40: 2023-11-01 | AS40: 1 | AU40: 2024-04-05 | AV40: 126795.41
B41: Isustentabil | C41: ISEE<XBSP> | F41: 2022-04-22 | G41: 18.13298567 | H41: 1363.875855 | I41: 1756.829103 | J41: 2022-01-14 | K41: 1551.434279 | M41: 2023-11-03 | N41: 94.18796373 | O41: 101.8544567 | P41: 101.3305138 | Q41: 99.55018217 | AK41: 2023-11-02 | AR41: 2023-11-02 | AU41: 2024-04-12 | AV41: 125946.09
B42: Itag Along | C42: ITAG<XBSP> | F42: 2022-04-29 | G42: 17.94055923 | H42: 2040.996789 | I42: 1794.549754 | J42: 2022-01-21 | K42: 1507.767257 | M42: 2023-11-06 | N42: 95.30090684 | O42: 102.0883013 | P42: 101.3766324 | Q42: 99.73133052 | AK42: 2023-11-03 | AL42: 94.18796373 | AM42: 104.7107438 | AN42: 96.61319073 | AO42: 104.2488619 | AR42: 2023-11-03 | AS42: 0.98 | AU42: 2024-04-19 | AV42: 125124.3
B43: Ivbx2 | C43: IVBX<XBSP> | F43: 2022-05-06 | G43: 18.08808617 | H43: 2408.601223 | I43: 1892.72697 | J43: 2022-01-28 | K43: 1447.635206 | M43: 2023-11-07 | N43: 93.98186315 | O43: 102.8096355 | P43: 101.4227721 | Q43: 99.06169221 | AK43: 2023-11-06 | AL43: 95.30090684 | AM43: 104.7933884 | AN43: 96.96969697 | AO43: 103.4901366 | AR43: 2023-11-06 | AS43: 0.91 | AU43: 2024-04-26 | AV43: 126526.27
B44: Midlarge Cap | C44: MLCX<XBSP> | F44: 2022-05-13 | G44: 17.83151757 | H44: 1894.594196 | I44: 1889.230241 | J44: 2022-02-04 | K44: 1421.079516 | M44: 2023-11-08 | N44: 93.52844188 | O44: 102.7308569 | P44: 101.4689328 | Q44: 99.43823655 | AK44: 2023-11-07 | AL44: 93.98186315 | AM44: 104.9586777 | AN44: 98.48484849 | AO44: 103.3383915 | AR44: 2023-11-07 | AS44: 0.88 | AU44: 2024-05-03 | AV44: 128508.67
B45: Small Cap | C45: SMLL<XBSP> | F45: 2022-05-20 | G45: 18.30412194 | H45: 1783.285826 | I45: 1914.998461 | J45: 2022-02-11 | K45: 1425.10475 | M45: 2023-11-09 | N45: 93.65210223 | O45: 102.6079954 | P45: 101.5151144 | Q45: 99.74761352 | AK45: 2023-11-08 | AL45: 93.52844188 | AM45: 104.9586777 | AN45: 98.03921569 | AO45: 103.3383915 | AR45: 2023-11-08 | AS45: 0.82 | AU45: 2024-05-10 | AV45: 127599.57
B46: Ind Fdo Imob | C46: IFIX<XBSP> | F46: 2022-05-27 | G46: 19.2468235 | H46: 1993.990952 | I46: 1906.65644 | J46: 2022-02-18 | K46: 1447.163841 | M46: 2023-11-10 | N46: 97.93899423 | O46: 103.9303107 | P46: 101.5613171 | Q46: 100.179113 | AK46: 2023-11-09 | AL46: 93.65210223 | AM46: 103.4710744 | AN46: 98.30659537 | AO46: 101.2139605 | AR46: 2023-11-09 | AS46: 0.81 | AU46: 2024-05-17 | AV46: 128150.71
F47: 2022-06-03 | G47: 19.69198813 | H47: 1692.003524 | I47: 1898.387129 | J47: 2022-02-25 | K47: 1492.322808 | M47: 2023-11-13 | N47: 97.0733718 | O47: 103.7941398 | P47: 101.607541 | Q47: 100.2361035 | AK47: 2023-11-10 | AL47: 97.93899423 | AM47: 104.7107438 | AN47: 102.3172905 | AO47: 103.3383915 | AR47: 2023-11-10 | AS47: 0.78 | AU47: 2024-05-24 | AV47: 124305.57
F48: 2022-06-10 | G48: 17.97679501 | H48: 1838.233652 | I48: 1864.174425 | J48: 2022-03-04 | K48: 1471.160762 | M48: 2023-11-14 | N48: 99.58779885 | O48: 106.1694715 | P48: 101.6537858 | Q48: 99.08611671 | AK48: 2023-11-13 | AL48: 97.0733718 | AM48: 104.4628099 | AN48: 102.1390374 | AO48: 102.7314112 | AR48: 2023-11-13 | AS48: 0.74 | AU48: 2024-05-31 | AV48: 122098.09
F49: 2022-06-17 | G49: 15.29271418 | H49: 2279.855648 | I49: 1845.478521 | J49: 2022-03-11 | K49: 1524.914192 | M49: 2023-11-15 | AK49: 2023-11-14 | AL49: 99.58779885 | AM49: 113.553719 | AN49: 105.258467 | AO49: 107.2837633 | AR49: 2023-11-14 | AS49: 0.73 | AU49: 2024-06-07 | AV49: 120767.19
F50: 2022-06-24 | G50: 15.15523687 | H50: 2271.773169 | I50: 1850.274232 | J50: 2022-03-18 | K50: 1583.251185 | M50: 2023-11-16 | N50: 99.91755977 | O50: 107.4396183 | P50: 101.7000516 | Q50: 98.8683316 | AK50: 2023-11-15 | AR50: 2023-11-15 | AU50: 2024-06-14 | AV50: 119662.38
F51: 2022-07-01 | G51: 14.58568801 | H51: 1562.636269 | I51: 1826.503127 | J51: 2022-03-25 | K51: 1665.540954 | M51: 2023-11-17 | N51: 101.0305029 | O51: 107.5551011 | P51: 101.7463386 | Q51: 99.4260243 | AK51: 2023-11-16 | AL51: 99.91755977 | AM51: 121.4049587 | AN51: 106.684492 | AO51: 115.0227618 | AR51: 2023-11-16 | AS51: 0.7 | AU51: 2024-06-21 | AV51: 121341.13
F52: 2022-07-08 | G52: 15.30580726 | H52: 1658.40987 | I52: 1818.765365 | J52: 2022-04-01 | K52: 1762.676902 | M52: 2023-11-20 | N52: 96.65979893 | O52: 108.5755854 | P52: 101.7926465 | Q52: 99.16956708 | AK52: 2023-11-17 | AL52: 101.0305029 | AM52: 122.8099174 | AN52: 108.6452763 | AO52: 115.3262519 | AR52: 2023-11-17 | AS52: 0.7 | AU52: 2024-06-28 | AV52: 123906.55
F53: 2022-07-15 | G53: 15.41055188 | H53: 1489.599702 | I53: 1867.527437 | J53: 2022-04-08 | K53: 1789.68569 | M53: 2023-11-21 | N53: 98.25678692 | O53: 108.290236 | P53: 101.8389756 | Q53: 99.33850318 | AK53: 2023-11-20 | AL53: 96.65979893 | AM53: 134.4628099 | AN53: 103.6279101 | AO53: 117.754173 | AR53: 2023-11-20 | AS53: 0.7 | AU53: 2024-07-05 | AV53: 126267.05
F54: 2022-07-22 | G54: 15.58730842 | H54: 1166.753566 | I54: 1852.364184 | J54: 2022-04-15 | K54: 1750.436897 | M54: 2023-11-22 | N54: 97.92057892 | O54: 108.6430287 | P54: 101.8853257 | Q54: 99.6682339 | AK54: 2023-11-21 | AL54: 98.25678692 | AM54: 135.6126857 | AN54: 104.2068369 | AO54: 118.0576631 | AR54: 2023-11-21 | AS54: 0.7 | AU54: 2024-07-12 | AV54: 128896.98
F55: 2022-07-29 | G55: 16.01283343 | H55: 1357.168515 | I55: 1799.762009 | J55: 2022-04-22 | K55: 1756.829103 | M55: 2023-11-23 | N55: 97.71044892 | O55: 109.1088991 | P55: 101.9316969 | Q55: 99.59292504 | AK55: 2023-11-22 | AL55: 97.92057892 | AM55: 138.7302187 | AN55: 104.3033248 | AO55: 119.7268589 | AR55: 2023-11-22 | AS55: 0.7 | AU55: 2024-07-19 | AV55: 127616.46
F56: 2022-08-05 | G56: 16.13721766 | H56: 1949.050133 | I56: 1764.411925 | J56: 2022-04-29 | K56: 1794.549754 | M56: 2023-11-24 | N56: 93.80203097 | O56: 108.1964843 | P56: 101.9780893 | Q56: 99.58478354 | AK56: 2023-11-23 | AL56: 97.71044892 | AM56: 136.6518634 | AN56: 104.2068369 | AO56: 117.754173 | AR56: 2023-11-23 | AS56: 0.7 | AU56: 2024-07-26 | AV56: 127492.49
F57: 2022-08-12 | G57: 17.08646576 | H57: 1572.349334 | I57: 1739.623859 | J57: 2022-05-06 | K57: 1892.72697 | M57: 2023-11-27 | N57: 93.76000497 | O57: 108.3811085 | P57: 102.0245028 | Q57: 99.63363253 | AK57: 2023-11-24 | AL57: 93.80203097 | AM57: 135.2662932 | AN57: 100.7332757 | AO57: 116.8437026 | AR57: 2023-11-24 | AS57: 0.7 | AU57: 2024-08-02 | AV57: 125854.09
F58: 2022-08-19 | G58: 15.97577563 | H58: 1645.77269 | I58: 1729.045925 | J58: 2022-05-13 | K58: 1889.230241 | M58: 2023-11-28 | N58: 93.67595297 | O58: 109.0766343 | P58: 102.0709374 | Q58: 99.46266105 | AK58: 2023-11-27 | AL58: 93.76000497 | AM58: 138.5570225 | AN58: 101.0227391 | AO58: 118.5128983 | AR58: 2023-11-27 | AS58: 0.7 | AU58: 2024-08-09 | AV58: 130614.59
F59: 2022-08-26 | G59: 16.19794191 | H59: 1198.842013 | I59: 1667.880622 | J59: 2022-05-20 | K59: 1914.998461 | M59: 2023-11-29 | N59: 93.92810896 | O59: 108.7553824 | P59: 102.1173932 | Q59: 99.59699579 | AK59: 2023-11-28 | AL59: 93.67595297 | AM59: 140.0291908 | AN59: 101.0227391 | AO59: 119.4233687 | AR59: 2023-11-28 | AS59: 0.68 | AU59: 2024-08-16 | AV59: 133953.25
F60: 2022-09-02 | G60: 16.20467422 | H60: 1296.429776 | I60: 1637.451872 | J60: 2022-05-27 | K60: 1906.65644 | M60: 2023-11-30 | N60: 91.82680899 | O60: 109.7600317 | P60: 102.1638701 | Q60: 100.4559239 | AK60: 2023-11-29 | AL60: 93.92810896 | AM60: 141.0683685 | AN60: 100.4438123 | AO60: 117.6024279 | AR60: 2023-11-29 | AS60: 0.68 | AU60: 2024-08-23 | AV60: 135608.47
F61: 2022-09-09 | G61: 16.52109287 | H61: 1806.925364 | I61: 1635.043542 | J61: 2022-06-03 | K61: 1898.387129 | M61: 2023-12-01 | N61: 93.08758897 | O61: 110.4960027 | P61: 102.2103681 | Q61: 100.1221225 | AK61: 2023-11-30 | AL61: 91.82680899 | AM61: 142.1941443 | AN61: 99.18947072 | AO61: 119.2716237 | AR61: 2023-11-30 | AS61: 0.64 | AU61: 2024-08-30 | AV61: 136004.01
F62: 2022-09-16 | G62: 15.47758456 | H62: 1682.116869 | I62: 1589.063636 | J62: 2022-06-10 | K62: 1864.174425 | M62: 2023-12-04 | N62: 92.83543298 | O62: 109.3046087 | P62: 102.2568873 | Q62: 99.91858501 | AK62: 2023-12-01 | AL62: 93.08758897 | AM62: 148.6024066 | AN62: 100.3473245 | AO62: 124.7344461 | AR62: 2023-12-01 | AS62: 0.61 | AU62: 2024-09-06 | AV62: 134572.45
F63: 2022-09-23 | G63: 16.3662497 | H63: 1789.127622 | I63: 1551.937056 | J63: 2022-06-17 | K63: 1845.478521 | M63: 2023-12-05 | N63: 93.54987497 | O63: 109.3912057 | P63: 102.3034275 | Q63: 100.7958316 | AK63: 2023-12-04 | AL63: 92.83543298 | AM63: 147.3034345 | AN63: 99.76839759 | AO63: 125.7966616 | AR63: 2023-12-04 | AS63: 0.56 | AU63: 2024-09-13 | AV63: 134881.95
F64: 2022-09-30 | G64: 16.45376976 | H64: 1331.402453 | I64: 1534.149839 | J64: 2022-06-24 | K64: 1850.274232 | M64: 2023-12-06 | N64: 93.50784897 | O64: 108.2873224 | P64: 102.3499891 | Q64: 99.79646252 | AK64: 2023-12-05 | AL64: 93.54987497 | AM64: 148.7756029 | AN64: 100.3473245 | AO64: 125.3414264 | AR64: 2023-12-05 | AS64: 0.51 | AU64: 2024-09-20 | AV64: 131065.44
F65: 2022-10-07 | G65: 17.22125329 | H65: 1672.032457 | I65: 1535.19773 | J65: 2022-07-01 | K65: 1826.503127 | M65: 2023-12-07 | N65: 93.76000497 | O65: 108.6208493 | P65: 102.3965718 | Q65: 99.62956178 | AK65: 2023-12-06 | AL65: 93.50784897 | AM65: 148.3426122 | AN65: 99.18947072 | AO65: 125.7966616 | AR65: 2023-12-06 | AS65: 0.48 | AU65: 2024-09-27 | AV65: 132155.76
F66: 2022-10-14 | G66: 17.03274856 | H66: 882.691038 | I66: 1488.512448 | J66: 2022-07-08 | K66: 1818.765365 | M66: 2023-12-08 | N66: 94.60052496 | O66: 109.5552624 | P66: 102.4431757 | Q66: 100.0549551 | AK66: 2023-12-07 | AL66: 93.76000497 | AM66: 146.9570419 | AN66: 98.90000728 | AO66: 127.0106222 | AR66: 2023-12-07 | AS66: 0.48
F67: 2022-10-21 | G67: 18.16377692 | H67: 1205.747346 | I67: 1491.51197 | J67: 2022-07-15 | K67: 1867.527437 | M67: 2023-12-11 | N67: 94.72660296 | O67: 109.4025497 | P67: 102.4898008 | Q67: 100.6289308 | AK67: 2023-12-08 | AL67: 94.60052496 | AM67: 148.9487991 | AN67: 99.28595853 | AO67: 128.6798179 | AR67: 2023-12-08 | AS67: 0.47
F68: 2022-10-28 | G68: 17.24145022 | H68: 1477.516023 | I68: 1500.769471 | J68: 2022-07-22 | K68: 1852.364184 | M68: 2023-12-12 | N68: 95.39901895 | O68: 108.9600137 | P68: 102.5364471 | Q68: 100.7022043 | AK68: 2023-12-11 | AL68: 94.72660296 | AM68: 148.4292103 | AN68: 99.76839759 | AO68: 128.983308 | AR68: 2023-12-11 | AS68: 0.47
F69: 2022-11-04 | G69: 18.1503123 | H69: 1363.965627 | I69: 1455.76297 | J69: 2022-07-29 | K69: 1799.762009 | M69: 2023-12-13 | N69: 96.65979893 | O69: 111.5995153 | P69: 102.5831147 | Q69: 100.9138833 | AK69: 2023-12-12 | AL69: 95.39901895 | AM69: 148.5158084 | AN69: 99.09298291 | AO69: 128.983308 | AR69: 2023-12-12 | AS69: 0.41
F70: 2022-11-11 | G70: 20.95095396 | H70: 3050.933694 | I70: 1569.500229 | J70: 2022-08-05 | K70: 1764.411925 | M70: 2023-12-14 | N70: 98.63502091 | O70: 112.7865045 | P70: 102.6279838 | Q70: 99.55425292 | AK70: 2023-12-13 | AL70: 96.65979893 | AM70: 151.7199396 | AN70: 101.1192269 | AO70: 130.3490137 | AR70: 2023-12-13 | AS70: 0.41
F71: 2022-11-18 | G71: 20.08248575 | H71: 1407.092236 | I71: 1551.140194 | J71: 2022-08-12 | K71: 1739.623859 | M71: 2023-12-15 | N71: 97.62639692 | O71: 112.2305201 | P71: 102.6728724 | Q71: 100.5414097 | AK71: 2023-12-14 | AL71: 98.63502091 | AM71: 152.4993228 | AN71: 102.8560076 | AO71: 132.3216995 | AR71: 2023-12-14 | AS71: 0.38
F72: 2022-11-25 | G72: 21.29378399 | H72: 1391.461145 | I72: 1565.95705 | J72: 2022-08-19 | K72: 1729.045925 | M72: 2023-12-18 | N72: 98.92920291 | O72: 112.9948769 | P72: 102.7177807 | Q72: 100.5454804 | AK72: 2023-12-15 | AL72: 97.62639692 | AM72: 156.1364447 | AN72: 101.0227391 | AO72: 133.9908953 | AR72: 2023-12-15 | AS72: 0.36
F73: 2022-12-02 | G73: 22.54806544 | H73: 2749.460223 | I73: 1677.728623 | J73: 2022-08-26 | K73: 1667.880622 | M73: 2023-12-19 | N73: 96.49169493 | O73: 113.6561035 | P73: 102.7627088 | Q73: 99.04744459 | AK73: 2023-12-18 | AL73: 98.92920291 | AM73: 160.4663516 | AN73: 103.6279101 | AO73: 134.2943854 | AR73: 2023-12-18 | AS73: 0.37
F74: 2022-12-09 | G74: 22.81632217 | H74: 1752.538895 | I74: 1673.545048 | J74: 2022-09-02 | K74: 1637.451872 | M74: 2023-12-20 | N74: 95.69320094 | O74: 112.7538173 | P74: 102.8076564 | Q74: 99.25708819 | AK74: 2023-12-19 | AL74: 96.49169493 | AM74: 161.93852 | AN74: 102.4700563 | AO74: 134.4461305 | AR74: 2023-12-19 | AS74: 0.36
F75: 2022-12-16 | G75: 21.87379853 | H75: 2218.348659 | I75: =IFERROR(VLOOKUP(F75,$J$11:$K$607,2,0),NA()) -> 1714.793647 | J75: 2022-09-09 | K75: 1635.043542 | M75: 2023-12-21 | N75: 98.34083892 | O75: 113.9415219 | P75: 102.8526236 | Q75: 99.23469907 | AK75: 2023-12-20 | AL75: 95.69320094 | AM75: 159.1673795 | AN75: 101.2157148 | AO75: 133.5356601 | AR75: 2023-12-20 | AS75: 0.33
F76: 2022-12-23 | G76: 20.8080218 | H76: 2150.739724 | I76: 1742.609963 | J76: 2022-09-16 | K76: 1589.063636 | M76: 2023-12-22 | N76: 99.3914889 | O76: 114.4336577 | P76: 102.8976106 | Q76: 98.9578881 | U76: =IF(S76="","",IF(T76="",NA(),T76-V76)) ->  | AK76: 2023-12-21 | AL76: 98.34083892 | AM76: 164.9694549 | AN76: 103.4349344 | AO76: 138.5432473 | AR76: 2023-12-21 | AS76: 0.32
F77: 2022-12-30 | G77: 21.29378399 | H77: 1063.776156 | I77: 1722.023325 | J77: 2022-09-23 | K77: 1551.937056 | M77: 2023-12-25 | AK77: 2023-12-22 | AL77: 99.3914889 | AM77: 165.4890437 | AN77: 104.3033248 | AO77: 140.8194234 | AR77: 2023-12-22 | AS77: 0.31
F78: 2023-01-06 | G78: 21.98980144 | H78: 1471.071281 | I78: 1706.564773 | J78: 2022-09-30 | K78: 1534.149839 | M78: 2023-12-26 | N78: 99.18135891 | O78: 115.1060128 | P78: 102.9426173 | Q78: 98.44700902 | AK78: 2023-12-25 | AR78: 2023-12-25
F79: 2023-01-13 | G79: 23.51233962 | H79: 1831.349955 | I79: 1779.538536 | J79: 2022-10-07 | K79: 1535.19773 | M79: 2023-12-27 | N79: 98.88717691 | O79: 115.6756255 | P79: 102.9876436 | Q79: 98.32081578 | AK79: 2023-12-26 | AL79: 99.18135891 | AM79: 167.6539972 | AN79: 104.3033248 | AO79: 141.4264036 | AR79: 2023-12-26 | AS79: 0.31
F80: 2023-01-20 | G80: 24.07060362 | H80: 1750.078572 | I80: 1821.410169 | J80: 2022-10-14 | K80: 1488.512448 | M80: 2023-12-28 | N80: 99.8537749 | O80: 115.6683157 | P80: 103.0326896 | Q80: 98.53860088 | AK80: 2023-12-27 | AL80: 98.88717691 | AM80: 168.9529692 | AN80: 104.0138613 | AO80: 141.7298938 | AR80: 2023-12-27 | AS80: 0.29
F81: 2023-01-27 | G81: 23.39633671 | H81: 1315.442396 | I81: 1808.942966 | J81: 2022-10-21 | K81: 1491.51197 | M81: 2023-12-29 | P81: 103.0777554 | Q81: 98.53860088 | AK81: 2023-12-28 | AL81: 99.8537749 | AM81: 170.2519413 | AN81: 104.7857638 | AO81: 140.9711684 | AR81: 2023-12-28 | AS81: 0.28
F82: 2023-02-03 | G82: 22.51181453 | H82: 1484.774539 | I82: 1818.23596 | J82: 2022-10-28 | K82: 1500.769471 | M82: 2024-01-01 | AK82: 2023-12-29 | AR82: 2023-12-29
F83: 2023-02-10 | G83: 20.5325149 | H83: 2247.643129 | I83: 1756.444378 | J83: 2022-11-04 | K83: 1455.76297 | M83: 2024-01-02 | N83: 98.88717691 | O83: 114.3851268 | P83: 103.1228408 | Q83: 99.56239441 | AK83: 2024-01-01 | AR83: 2024-01-01
F84: 2023-02-17 | G84: 20.72826981 | H84: 1273.952574 | I84: 1746.202865 | J84: 2022-11-11 | K84: 1569.500229 | M84: 2024-01-03 | N84: 97.79450092 | O84: 114.5034973 | P84: 103.1679459 | Q84: 100.1648654 | AK84: 2024-01-02 | AL84: 98.88717691 | AM84: 168.0869879 | AN84: 103.9173735 | AO84: 138.5432473 | AR84: 2024-01-02 | AS84: 0.28
F85: 2023-02-24 | G85: 20.33675999 | H85: 607.847103 | I85: 1685.924862 | J85: 2022-11-18 | K85: 1551.140194 | M85: 2024-01-04 | N85: 97.29018893 | O85: 113.1173592 | P85: 103.2130707 | Q85: 100.1160164 | AK85: 2024-01-03 | AL85: 97.79450092 | AM85: 169.5591562 | AN85: 103.2419588 | AO85: 137.784522 | AR85: 2024-01-03 | AS85: 0.28
F86: 2023-03-03 | G86: 21.3300349 | H86: 1654.44784 | I86: 1601.69314 | J86: 2022-11-25 | K86: 1565.95705 | M86: 2024-01-05 | N86: 97.33221493 | O86: 113.8043856 | P86: 103.2582153 | Q86: 99.52779304 | AK86: 2024-01-04 | AL86: 97.29018893 | AM86: 167.0478102 | AN86: 102.2770807 | AO86: 135.6600911 | AR86: 2024-01-04 | AS86: 0.27
F87: 2023-03-10 | G87: 19.56824072 | H87: 1522.455211 | I87: 1583.994395 | J87: 2022-12-02 | K87: 1677.728623 | M87: 2024-01-08 | N87: 98.17273492 | O87: 114.152308 | P87: 103.3033797 | Q87: 99.42805968 | AK87: 2024-01-05 | AL87: 97.33221493 | AM87: 166.6148195 | AN87: 102.7595198 | AO87: 135.3566009 | AR87: 2024-01-05 | AS87: 0.27
F88: 2023-03-17 | G88: 18.62567657 | H88: 1863.144747 | I88: 1556.671018 | J88: 2022-12-09 | K88: 1673.545048 | M88: 2024-01-09 | N88: 93.04556297 | O88: 113.3075864 | P88: 103.3485638 | Q88: 99.60513729 | AK88: 2024-01-08 | AL88: 98.17273492 | AM88: 166.7014176 | AN88: 103.145471 | AO88: 134.4461305 | AR88: 2024-01-08 | AS88: 0.2
F89: 2023-03-24 | G89: 18.85904535 | H89: 1223.139691 | I89: 1485.317169 | J89: 2022-12-16 | K89: 1714.793647 | M89: 2024-01-10 | N89: 90.271847 | O89: 112.7856425 | P89: 103.3937677 | Q89: 99.53186379 | AK89: 2024-01-09 | AL89: 93.04556297 | AM89: 159.2539777 | AN89: 98.41756822 | AO89: 130.9559939 | AR89: 2024-01-09 | AS89: 0.2
F90: 2023-03-31 | G90: 19.39590308 | H90: 994.690922 | I90: 1480.00292 | J90: 2022-12-23 | K90: 1742.609963 | M90: 2024-01-11 | N90: 89.09511902 | O90: 112.6198445 | P90: 103.4389913 | Q90: 99.31407869 | AK90: 2024-01-10 | AL90: 90.271847 | AM90: 155.097267 | AN90: 96.48781198 | AO90: 127.4658574 | AR90: 2024-01-10 | AS90: 0.2
F91: 2023-04-07 | G91: 18.36053459 | H91: 773.946964 | I91: 1426.377972 | J91: 2022-12-30 | K91: 1722.023325 | M91: 2024-01-12 | N91: 89.55740501 | O91: 112.9119952 | P91: 103.4842348 | Q91: 98.80319961 | AK91: 2024-01-11 | AL91: 89.09511902 | AM91: 154.7508744 | AN91: 96.10186074 | AO91: 129.2867982 | AR91: 2024-01-11 | AS91: 0.19
F92: 2023-04-14 | G92: 20.05547116 | H92: 1540.019627 | I92: 1403.967947 | J92: 2023-01-06 | K92: 1706.564773 | M92: 2024-01-15 | N92: 89.43132701 | O92: 113.3716506 | P92: 103.529498 | Q92: 99.25505282 | AK92: 2024-01-12 | AL92: 89.55740501 | AM92: 155.0106689 | AN92: 96.00537292 | AO92: 128.5280728 | AR92: 2024-01-12 | AS92: 0.19
F93: 2023-04-21 | G93: 19.85606686 | H93: 676.161551 | I93: 1321.358946 | J93: 2023-01-13 | K93: 1779.538536 | M93: 2024-01-16 | N93: 86.90976704 | O93: 111.452078 | P93: 103.5747811 | Q93: 99.81071014 | AK93: 2024-01-15 | AL93: 89.43132701 | AM93: 154.49108 | AN93: 96.48781198 | AO93: 129.5902883 | AR93: 2024-01-15 | AS93: 0.17
F94: 2023-04-28 | G94: 19.31153972 | H94: 919.551321 | I94: 1290.905786 | J94: 2023-01-20 | K94: 1821.410169 | M94: 2024-01-17 | N94: 86.40545505 | O94: 110.7881534 | P94: 103.6200839 | Q94: 100.4376056 | AK94: 2024-01-16 | AL94: 86.90976704 | AM94: 148.862201 | AN94: 94.17210449 | AO94: 127.0106222 | AR94: 2024-01-16 | AS94: 0.17
F95: 2023-05-05 | G95: 19.01243327 | H95: 1246.869705 | I95: 1272.605414 | J95: 2023-01-27 | K95: 1808.942966 | M95: 2024-01-18 | N95: 87.45610503 | O95: 109.746774 | P95: 103.6654065 | Q95: 100.5536219 | AK95: 2024-01-17 | AL95: 86.40545505 | AM95: 144.532294 | AN95: 93.11073856 | AO95: 125.7966616 | AR95: 2024-01-17 | AS95: 0.17
F96: 2023-05-12 | G96: 18.60595527 | H96: 1309.223003 | I96: 1200.419251 | J96: 2023-02-03 | K96: 1818.23596 | M96: 2024-01-19 | N96: 88.54878102 | O96: 110.022538 | P96: 103.7107491 | Q96: 100.1872545 | AK96: 2024-01-18 | AL96: 87.45610503 | AM96: 147.8230233 | AN96: 93.59317762 | AO96: 129.2867982 | AR96: 2024-01-18 | AS96: 0.17
F97: 2023-05-19 | G97: 18.86182634 | H97: 1459.87101 | I97: 1214.720669 | J97: 2023-02-10 | K97: 1756.444378 | M97: 2024-01-22 | N97: 87.66623503 | O97: 109.1311388 | P97: 103.7561113 | Q97: 100.7306995 | AK97: 2024-01-19 | AL97: 88.54878102 | AM97: 150.0745749 | AN97: 94.17210449 | AO97: 128.983308 | AR97: 2024-01-19 | AS97: 0.17
F98: 2023-05-26 | G98: 19.55112897 | H98: 1527.858498 | I98: 1285.490776 | J98: 2023-02-17 | K98: 1746.202865 | M98: 2024-01-23 | N98: 89.22119702 | O98: 110.5629029 | P98: 103.8014934 | Q98: 101.1886589 | AK98: 2024-01-22 | AL98: 87.66623503 | AM98: 148.3426122 | AN98: 93.68966543 | AO98: 130.5007587 | AR98: 2024-01-22 | AS98: 0.17
F99: 2023-06-02 | G99: 19.64512478 | H99: 1336.859218 | I99: 1261.060882 | J99: 2023-02-24 | K99: 1685.924862 | M99: 2024-01-24 | N99: 91.28047099 | O99: 110.1777419 | P99: 103.8468954 | Q99: 100.1241579 | AK99: 2024-01-23 | AL99: 89.22119702 | AM99: 150.8539582 | AN99: 95.13698261 | AO99: 131.107739 | AR99: 2024-01-23 | AS99: 0.17
F100: 2023-06-09 | G100: 19.81745044 | H100: 887.778245 | I100: 1212.239577 | J100: 2023-03-03 | K100: 1601.69314 | M100: 2024-01-25 | N100: 91.53262699 | O100: 110.4820555 | P100: 103.8923172 | Q100: 100.2055728 | AK100: 2024-01-24 | AL100: 91.28047099 | AM100: 154.3178837 | AN100: 96.87376323 | AO100: 136.1153263 | AR100: 2024-01-24 | AS100: 0.13
F101: 2023-06-16 | G101: 20.32659442 | H101: 1359.900836 | I101: 1173.528507 | J101: 2023-03-10 | K101: 1583.994395 | M101: 2024-01-26 | N101: 91.78478299 | O101: 111.1704438 | P101: 103.9377589 | Q101: 99.98778775 | AK101: 2024-01-25 | AL101: 91.53262699 | AM101: 155.1838652 | AN101: 96.68078761 | AO101: 137.0257967 | AR101: 2024-01-25 | AS101: 0.12
F102: 2023-06-23 | G102: 19.6842897 | H102: 937.205229 | I102: 1151.533548 | J102: 2023-03-17 | K102: 1556.671018 | M102: 2024-01-29 | N102: 89.76753501 | O102: 110.7699047 | P102: 103.9832204 | Q102: 100.1913252 | AK102: 2024-01-26 | AL102: 91.78478299 | AM102: 157.2622205 | AN102: 97.25971448 | AO102: 144.1578149 | AR102: 2024-01-26 | AS102: 0.14
F103: 2023-06-30 | G103: 19.6372918 | H103: 923.588798 | I103: 1146.064154 | J103: 2023-03-24 | K103: 1485.317169 | M103: 2024-01-30 | N103: 89.38930101 | O103: 109.8209668 | P103: 104.0287019 | Q103: 101.031935 | AK103: 2024-01-29 | AL103: 89.76753501 | AM103: 156.5694354 | AN103: 96.29483636 | AO103: 141.1229135 | AR103: 2024-01-29 | AS103: 0.14
F104: 2023-07-07 | G104: 20.47542112 | H104: 1019.061877 | I104: 1164.919148 | J104: 2023-03-31 | K104: 1480.00292 | M104: 2024-01-31 | N104: 88.42270302 | O104: 110.1230736 | P104: 104.0742033 | Q104: 100.8222914 | AK104: 2024-01-30 | AL104: 89.38930101 | AM104: 155.097267 | AN104: 96.10186074 | AO104: 137.9362671 | AR104: 2024-01-30 | AS104: 0.14
F105: 2023-07-14 | G105: 21.27438553 | H105: 1093.173393 | I105: 1130.54636 | J105: 2023-04-07 | K105: 1426.377972 | M105: 2024-02-01 | N105: 88.12852103 | O105: 110.7512509 | P105: 104.1178702 | Q105: 100.4457471 | AK105: 2024-01-31 | AL105: 88.42270302 | AM105: 153.5385005 | AN105: 95.61942167 | AO105: 139.4537178 | AR105: 2024-01-31 | AS105: 0.14
F106: 2023-07-21 | G106: 21.32138343 | H106: 1056.116696 | I106: 1159.773679 | J106: 2023-04-14 | K106: 1403.967947 | M106: 2024-02-02 | N106: 90.22982101 | O106: 109.631705 | P106: 104.1615554 | Q106: 100.6920274 | AK106: 2024-02-01 | AL106: 88.12852103 | AM106: 152.1529303 | AN106: 95.0404948 | AO106: 140.060698 | AR106: 2024-02-01 | AS106: 0.14
F107: 2023-07-28 | G107: 22.23000962 | H107: 1545.687984 | I107: 1207.938038 | J107: 2023-04-21 | K107: 1321.358946 | M107: 2024-02-05 | N107: 89.68348301 | O107: 109.9861959 | P107: 104.2052589 | Q107: 101.8766156 | AK107: 2024-02-02 | AL107: 90.22982101 | AM107: 148.256014 | AN107: 96.48781198 | AO107: 137.9362671 | AR107: 2024-02-02 | AS107: 0.13
F108: 2023-08-04 | G108: 21.98718711 | H108: 1792.035066 | I108: 1249.873835 | J108: 2023-04-28 | K108: 1290.905786 | M108: 2024-02-06 | N108: 91.32249699 | O108: 112.4194801 | P108: 104.2489808 | Q108: 101.1316684 | AK108: 2024-02-05 | AL108: 89.68348301 | AM108: 150.4209675 | AN108: 96.29483636 | AO108: 137.9362671 | AR108: 2024-02-05 | AS108: 0.13
F109: 2023-08-11 | G109: 20.09943787 | H109: 2050.46665 | I109: 1306.892577 | J109: 2023-05-05 | K109: 1272.605414 | M109: 2024-02-07 | N109: 91.53262699 | O109: 112.0174325 | P109: 104.2927209 | Q109: 100.9708738 | AK109: 2024-02-06 | AL109: 91.32249699 | AM109: 155.7900521 | AN109: 98.51405603 | AO109: 139.908953 | AR109: 2024-02-06 | AS109: 0.12
F110: 2023-08-18 | G110: 19.97411012 | H110: 1395.443394 | I110: 1301.936606 | J110: 2023-05-12 | K110: 1200.419251 | M110: 2024-02-08 | N110: 89.72550901 | O110: 110.5235955 | P110: 104.3364795 | Q110: 101.3698072 | AK110: 2024-02-07 | AL110: 91.53262699 | AM110: 158.7343888 | AN110: 98.61054385 | AO110: 141.5781487 | AR110: 2024-02-07 | AS110: 0.12
F111: 2023-08-25 | G111: 19.75102473 | H111: 1040.812393 | I111: 1264.471522 | J111: 2023-05-19 | K111: 1214.720669 | M111: 2024-02-09 | N111: 88.17054703 | O111: 110.3587629 | P111: 104.3802563 | Q111: 101.1927296 | AK111: 2024-02-08 | AL111: 89.72550901 | AM111: 156.3962391 | AN111: 96.77727542 | AO111: 142.6403642 | AR111: 2024-02-08 | AS111: 0.11
F112: 2023-09-01 | G112: 20.71507233 | H112: 1007.167774 | I112: 1239.110641 | J112: 2023-05-26 | K112: 1285.490776 | M112: 2024-02-12 | AK112: 2024-02-09 | AL112: 88.17054703 | AM112: 154.1446875 | AN112: 95.32995824 | AO112: 140.8194234 | AR112: 2024-02-09 | AS112: 0.11
F113: 2023-09-08 | G113: 20.16532618 | H113: 861.441706 | I113: 1237.084754 | J113: 2023-06-02 | K113: 1261.060882 | M113: 2024-02-13 | AK113: 2024-02-12 | AR113: 2024-02-12
F114: 2023-09-15 | G114: 20.53979095 | H114: 1090.753183 | I114: 1216.381088 | J114: 2023-06-09 | K114: 1212.239577 | M114: 2024-02-14 | N114: 87.16192304 | O114: 109.4903707 | P114: 104.4240515 | Q114: 101.2049419 | AK114: 2024-02-13 | AR114: 2024-02-13
F115: 2023-09-22 | G115: 19.32875595 | H115: 1116.895923 | I115: 1230.203449 | J115: 2023-06-16 | K115: 1173.528507 | M115: 2024-02-15 | N115: 86.99381904 | O115: 110.1677685 | P115: 104.4678651 | Q115: 101.178482 | AK115: 2024-02-14 | AL115: 87.16192304 | AM115: 154.7508744 | AN115: 94.46156793 | AO115: 142.0333839 | AR115: 2024-02-14 | AS115: 0.11
F116: 2023-09-29 | G116: 19.22518059 | H116: 1136.055911 | I116: 1246.547073 | J116: 2023-06-23 | K116: 1151.533548 | M116: 2024-02-16 | N116: 89.13714502 | O116: 110.9623214 | P116: 104.5116971 | Q116: 101.2822861 | AK116: 2024-02-15 | AL116: 86.99381904 | AM116: 159.6003702 | AN116: 94.46156793 | AO116: 149.9241275 | AR116: 2024-02-15 | AS116: 0.11
F117: 2023-10-06 | G117: 18.0619496 | H117: 1054.661835 | I117: 1249.285531 | J117: 2023-06-30 | K117: 1146.064154 | M117: 2024-02-19 | N117: 89.34727501 | O117: 111.2294222 | P117: 104.5555475 | Q117: 100.9240602 | AK117: 2024-02-16 | AL117: 89.13714502 | AM117: 164.8828567 | AN117: 96.39132417 | AO117: 153.414264 | AR117: 2024-02-16 | AS117: 0.11
F118: 2023-10-13 | G118: 17.79106019 | H118: 700.599622 | I118: 1219.087549 | J118: 2023-07-07 | K118: 1164.919148 | M118: 2024-02-20 | N118: 89.93563901 | O118: 111.9883054 | P118: 104.5994163 | Q118: 100.5637988 | AK118: 2024-02-19 | AL118: 89.34727501 | AM118: 163.843679 | AN118: 96.29483636 | AO118: 154.1729894 | AR118: 2024-02-19 | AS118: 0.11
F119: 2023-10-20 | G119: 17.08993467 | H119: 1077.841949 | I119: 1220.758722 | J119: 2023-07-14 | K119: 1130.54636 | M119: 2024-02-21 | N119: 91.78478299 | O119: 112.087841 | P119: 104.6433035 | Q119: 100.3500845 | AK119: 2024-02-20 | AL119: 89.93563901 | AM119: 155.8766503 | AN119: 96.97025104 | AO119: 156.7526555 | AR119: 2024-02-20 | AS119: 0.11
F120: 2023-10-27 | G120: 17.40066075 | H120: 795.505423 | I120: 1163.052371 | J120: 2023-07-21 | K120: 1159.773679 | M120: 2024-02-22 | N120: 90.986289 | O120: 112.2679742 | P120: 104.687209 | Q120: 100.5861879 | AK120: 2024-02-21 | AL120: 91.78478299 | AM120: 151.2869489 | AN120: 97.4526901 | AO120: 157.0561457 | AR120: 2024-02-21 | AS120: 0.11
F121: 2023-11-03 | G121: 18.20536164 | H121: 746.0412 | I121: 1082.591305 | J121: 2023-07-28 | K121: 1207.938038 | M121: 2024-02-23 | N121: 90.187795 | O121: 111.5595614 | P121: 104.731133 | Q121: 101.4654699 | AK121: 2024-02-22 | AL121: 90.986289 | AM121: 151.1137526 | AN121: 97.83864135 | AO121: 161.6084977 | AR121: 2024-02-22 | AS121: 0.09
F122: 2023-11-10 | G122: 18.93038917 | H122: 1272.148412 | I122: 1022.720671 | J122: 2023-08-04 | K122: 1249.873835 | M122: 2024-02-26 | N122: 89.09511902 | O122: 111.7236182 | P122: 104.7750755 | Q122: 101.4003379 | AK122: 2024-02-23 | AL122: 90.187795 | AM122: 153.5385005 | AN122: 96.77727542 | AO122: 162.3672231 | AR122: 2024-02-23 | AS122: 0.09
F123: 2023-11-17 | G123: 19.52793933 | H123: 1497.718205 | I123: 1030.587964 | J123: 2023-08-11 | K123: 1306.892577 | M123: 2024-02-27 | N123: 90.986289 | O123: 113.5168639 | P123: 104.8190364 | Q123: 100.9037064 | AK123: 2024-02-26 | AL123: 89.09511902 | AM123: 148.6890047 | AN123: 96.19834855 | AO123: 161.9119879 | AR123: 2024-02-26 | AS123: 0.09
F124: 2023-11-24 | G124: 18.13076564 | H124: 1411.435119 | I124: 1059.097405 | J124: 2023-08-18 | K124: 1301.936606 | M124: 2024-02-28 | N124: 90.566029 | O124: 112.1946003 | P124: 104.8630158 | Q124: 100.8670697 | AK124: 2024-02-27 | AL124: 90.986289 | AM124: 150.0745749 | AN124: 98.2245926 | AO124: 164.491654 | AR124: 2024-02-27 | AS124: 0.09
F125: 2023-12-01 | G125: 17.99267289 | H125: 1142.068595 | I125: 1069.474391 | J125: 2023-08-25 | K125: 1264.471522 | M125: 2024-02-29 | N125: 90.355899 | O125: 111.2158715 | P125: 104.9070137 | Q125: 101.4288331 | AK125: 2024-02-28 | AL125: 90.566029 | AM125: 147.7364252 | AN125: 97.4526901 | AO125: 166.1608498 | AR125: 2024-02-28 | AS125: 0.08
F126: 2023-12-08 | G126: 18.28510459 | H126: 1207.389064 | I126: 1096.085726 | J126: 2023-09-01 | K126: 1239.110641 | M126: 2024-03-01 | N126: 94.26431696 | O126: 111.354094 | P126: 104.95103 | Q126: 100.9464493 | AK126: 2024-02-29 | AL126: 90.355899 | AM126: 145.6580699 | AN126: 97.54917791 | AO126: 167.9817906 | AR126: 2024-02-29 | AS126: 0.08
F127: 2023-12-15 | G127: 18.869968 | H127: 1101.029696 | I127: 1096.876227 | J127: 2023-09-08 | K127: 1237.084754 | M127: 2024-03-04 | N127: 92.57574881 | O127: 110.6301565 | P127: 104.9950647 | Q127: 100.7001689 | AK127: 2024-03-01 | AL127: 94.26431696 | AM127: 147.8230233 | AN127: 99.96137321 | AO127: 168.5887709 | AR127: 2024-03-01 | AS127: 0.08
F128: 2023-12-22 | G128: 19.21113832 | H128: 976.175091 | I128: 1086.051548 | J128: 2023-09-15 | K128: 1216.381088 | M128: 2024-03-05 | N128: 91.47817951 | O128: 110.4211807 | P128: 105.0391179 | Q128: 100.7266288 | AK128: 2024-03-04 | AL128: 92.57574881 | AM128: 144.4456959 | AN128: 98.89486002 | AO128: 162.3672231 | AR128: 2024-03-04 | AS128: 0.08
F129: 2023-12-29 | G129: 19.30049246 | H129: 239.979255 | I129: 1017.122574 | J129: 2023-09-22 | K129: 1230.203449 | M129: 2024-03-06 | N129: 90.2539676 | O129: 111.1039919 | P129: 105.0831896 | Q129: 100.5434451 | AK129: 2024-03-05 | AL129: 91.47817951 | AM129: 143.5797145 | AN129: 97.53747959 | AO129: 162.9742033 | AR129: 2024-03-05 | AS129: 0.06
F130: 2024-01-05 | G130: 18.81310628 | H130: 583.023316 | I130: 980.8426882 | J130: 2023-09-29 | K130: 1246.547073 | M130: 2024-03-07 | N130: 88.90311308 | O130: 110.6294841 | P130: 105.1272797 | Q130: 100.4742423 | AK130: 2024-03-06 | AL130: 90.2539676 | AM130: 144.1859015 | AN130: 95.50140894 | AO130: 163.1259484 | AR130: 2024-03-06 | AS130: 0.06
F131: 2024-01-12 | G131: 17.31033225 | H131: 1368.655285 | I131: 1032.231585 | J131: 2023-10-06 | K131: 1249.285531 | M131: 2024-03-08 | N131: 89.66296875 | O131: 109.535626 | P131: 105.1713885 | Q131: 101.2619324 | AK131: 2024-03-07 | AL131: 88.90311308 | AM131: 137.2580504 | AN131: 95.01663021 | AO131: 161.3050076 | AR131: 2024-03-07 | AS131: 0.08
F132: 2024-01-19 | G132: 17.11537778 | H132: 1145.823636 | I132: 1037.460946 | J132: 2023-10-13 | K132: 1219.087549 | M132: 2024-03-11 | N132: 89.45189773 | O132: 108.7191092 | P132: 105.2155156 | Q132: 101.3148521 | AK132: 2024-03-08 | AL132: 89.66296875 | AM132: 141.2415648 | AN132: 95.01663021 | AO132: 164.7951442 | AR132: 2024-03-08 | AS132: 0.07
F133: 2024-01-26 | G133: 17.7408567 | H133: 826.370814 | I133: 1039.835207 | J133: 2023-10-20 | K133: 1220.758722 | M133: 2024-03-12 | N133: 90.92939486 | O133: 110.0502859 | P133: 105.2596613 | Q133: 101.3881256 | AK133: 2024-03-11 | AL133: 89.45189773 | AM133: 138.7302187 | AN133: 95.40445319 | AO133: 157.0561457 | AR133: 2024-03-11 | AS133: 0.07
F134: 2024-02-02 | G134: 17.44030189 | H134: 1023.671161 | I134: 1061.191358 | J134: 2023-10-27 | K134: 1163.052371 | M134: 2024-03-13 | N134: 92.28024938 | O134: 110.3418245 | P134: 105.3038255 | Q134: 101.3677719 | AK134: 2024-03-12 | AL134: 90.92939486 | AM134: 140.2889852 | AN134: 96.08314341 | AO134: 154.9317147 | AR134: 2024-03-12 | AS134: 0.04
F135: 2024-02-09 | G135: 17.04226985 | H135: 706.331095 | I135: 1017.666949 | J135: 2023-11-03 | K135: 1082.591305 | M135: 2024-03-14 | N135: 89.49411194 | O135: 110.0693621 | P135: 105.3480082 | Q135: 101.2965337 | AK135: 2024-03-13 | AL135: 92.28024938 | AM135: 140.8951722 | AN135: 97.3435681 | AO135: 153.1107739 | AR135: 2024-03-13 | AS135: 0.04
F136: 2024-02-16 | G136: 17.22910122 | H136: 811.043757 | I136: 964.8458372 | J136: 2023-11-10 | K136: 1022.720671 | M136: 2024-03-15 | N136: 87.72111538 | O136: 109.2520436 | P136: 105.3922094 | Q136: 101.6405121 | AK136: 2024-03-14 | AL136: 89.49411194 | AM136: 135.6126857 | AN136: 95.01663021 | AO136: 149.9241275 | AR136: 2024-03-14 | AS136: 0.05
F137: 2024-02-23 | G137: 17.43217879 | H137: 1392.211999 | I137: 963.3671357 | J137: 2023-11-17 | K137: 1030.587964 | M137: 2024-03-18 | N137: 90.46503862 | O137: 109.4351076 | P137: 105.4364293 | Q137: 102.0211272 | AK137: 2024-03-15 | AL137: 87.72111538 | AM137: 132.1487602 | AN137: 94.24098425 | AO137: 148.4066768 | AR137: 2024-03-15 | AS137: 0.05
F138: 2024-03-01 | G138: 18.22011977 | H138: 1282.854655 | I138: 974.1968326 | J138: 2023-11-24 | K138: 1059.097405 | M138: 2024-03-19 | N138: 91.43596531 | O138: 109.9304759 | P138: 105.4806677 | Q138: 102.4851926 | AK138: 2024-03-18 | AL138: 90.46503862 | AM138: 136.0456764 | AN138: 95.59836468 | AO138: 150.6828528 | AR138: 2024-03-18 | AS138: 0.05
F139: 2024-03-08 | G139: 17.3307364 | H139: 1025.506042 | I139: =IFERROR(VLOOKUP(F139,$J$11:$K$607,2,0),NA()) -> 960.2058309 | J139: 2023-12-01 | K139: 1069.474391 | M139: 2024-03-20 | N139: 92.23803518 | O139: 111.3062182 | P139: 105.5249246 | Q139: 102.0129857 | AK139: 2024-03-19 | AL139: 91.43596531 | AM139: 138.4704243 | AN139: 97.44052384 | AO139: 154.3247344 | AR139: 2024-03-19 | AS139: 0.04
F140: 2024-03-15 | G140: 16.95540031 | H140: 1500.498286 | I140: 990.934184 | J140: 2023-12-08 | K140: 1096.085726 | M140: 2024-03-21 | N140: 93.08231926 | O140: 110.4732975 | P140: 105.5673114 | Q140: 101.3759134 | U140: =IF(S140="","",IF(T140="",NA(),T140-V140)) ->  | AK140: 2024-03-20 | AL140: 92.23803518 | AM140: 141.2415648 | AN140: 98.79790427 | AO140: 157.5113809 | AR140: 2024-03-20 | AS140: 0.04
F141: 2024-03-22 | G141: 17.63263718 | H141: 822.571317 | I141: 979.1185091 | J141: 2023-12-15 | K141: 1096.876227 | M141: 2024-03-22 | N141: 91.22489429 | O141: 109.497965 | P141: 105.6097151 | Q141: 101.5590971 | AK141: 2024-03-21 | AL141: 93.08231926 | AM141: 141.0683685 | AN141: 99.18572725 | AO141: 156.7526555 | AR141: 2024-03-21 | AS141: 0.03
F142: 2024-03-29 | G142: 18.11404652 | H142: 663.084391 | I142: 1011.665058 | J142: 2023-12-22 | K142: 1086.051548 | M142: 2024-03-25 | N142: 91.05603748 | O142: 109.4155315 | P142: 105.652136 | Q142: 101.5021066 | AK142: 2024-03-22 | AL142: 91.22489429 | AM142: 137.4312466 | AN142: 97.63443533 | AO142: 154.0212443 | AR142: 2024-03-22 | AS142: 0.03
F143: 2024-04-05 | G143: 18.55465847 | H143: 1190.850943 | I143: 1058.421029 | J143: 2023-12-29 | K143: 1017.122574 | M143: 2024-03-26 | N143: 90.80275225 | O143: 109.3565272 | P143: 105.6945739 | Q143: 101.504142 | AK143: 2024-03-25 | AL143: 91.05603748 | AM143: 135.9590783 | AN143: 97.63443533 | AO143: 151.2898331 | AR143: 2024-03-25 | AS143: 0.04
F144: 2024-04-12 | G144: 18.20380081 | H144: 1051.971496 | I144: 1034.060738 | J144: 2024-01-05 | K144: 980.8426882 | M144: 2024-03-27 | N144: 92.74460563 | O144: 110.0699224 | P144: 105.7370289 | Q144: 101.4756467 | AK144: 2024-03-26 | AL144: 90.80275225 | AM144: 134.5735081 | AN144: 97.53747959 | AO144: 150.6828528 | AR144: 2024-03-26 | AS144: 0.04
F145: 2024-04-19 | G145: 18.81902563 | H145: 1641.337483 | I145: 1072.177188 | J145: 2024-01-12 | K145: 1032.231585 | M145: 2024-03-28 | N145: 93.71553231 | O145: 110.4280681 | P145: 105.7795009 | Q145: 101.6913965 | AK145: 2024-03-27 | AL145: 92.74460563 | AM145: 135.4394894 | AN145: 98.99181576 | AO145: 152.3520486 | AR145: 2024-03-27 | AS145: 0.04
F146: 2024-04-26 | G146: 18.24133442 | H146: 1701.104109 | I146: 1139.464364 | J146: 2024-01-19 | K146: 1037.460946 | M146: 2024-03-29 | AK146: 2024-03-28 | AL146: 93.71553231 | AM146: 135.9590783 | AN146: 99.76746172 | AO146: 151.8968134 | AR146: 2024-03-28 | AS146: 0.04
F147: 2024-05-03 | G147: 19.2498462 | H147: 1045.215036 | I147: 1141.121585 | J147: 2024-01-26 | K147: 1039.835207 | M147: 2024-04-01 | N147: 94.13767435 | O147: 109.4663725 | P147: 105.8219899 | Q147: 102.8515601 | AK147: 2024-03-29 | AR147: 2024-03-29
F148: 2024-05-10 | G148: 18.74069462 | H148: 1218.931595 | I148: 1180.552393 | J148: 2024-02-02 | K148: 1061.191358 | M148: 2024-04-02 | N148: 94.85531581 | O148: 109.9474315 | P148: 105.8644961 | Q148: 102.7375791 | AK148: 2024-04-01 | AL148: 94.13767435 | AM148: 136.1322746 | AN148: 100.3491962 | AO148: 153.1107739 | AR148: 2024-04-01 | AS148: 0.04
F149: 2024-05-17 | G149: 19.41601942 | H149: 1336.974324 | I149: 1221.008591 | J149: 2024-02-09 | K149: 1017.666949 | M149: 2024-04-03 | N149: 95.69959989 | O149: 109.7490583 | P149: 105.9070193 | Q149: 103.2423521 | AK149: 2024-04-02 | AL149: 94.85531581 | AM149: 132.7549471 | AN149: 101.8035324 | AO149: 155.3869499 | AR149: 2024-04-02 | AS149: 0.03
F150: 2024-05-24 | G150: 18.5917076 | H150: 1494.674629 | I150: 1228.890331 | J150: 2024-02-16 | K150: 964.8458372 | M150: 2024-04-04 | N150: 97.38816804 | O150: 109.8431375 | P150: 105.9495595 | Q150: 102.2511245 | AK150: 2024-04-03 | AL150: 95.69959989 | AM150: 132.8415453 | AN150: 102.2883111 | AO150: 154.3247344 | AR150: 2024-04-03 | AS150: 0.03
F151: 2024-05-31 | G151: 17.98588806 | H151: 869.152573 | I151: 1197.067094 | J151: 2024-02-23 | K151: 963.3671357 | M151: 2024-04-05 | N151: 95.99509931 | O151: 109.2982471 | P151: 105.9921168 | Q151: 102.8271356 | AK151: 2024-04-04 | AL151: 97.38816804 | AM151: 131.2827788 | AN151: 104.1304703 | AO151: 154.4764795 | AR151: 2024-04-04 | AS151: 0.03
F152: 2024-06-07 | G152: 16.85370074 | H152: 855.532132 | I152: 1183.992178 | J152: 2024-03-01 | K152: 974.1968326 | M152: 2024-04-08 | N152: 97.72588167 | O152: 111.0754854 | P152: 106.0346912 | Q152: 102.6256335 | AK152: 2024-04-05 | AL152: 95.99509931 | AM152: 129.4642179 | AN152: 102.8700456 | AO152: 150.5311077 | AR152: 2024-04-05 | AS152: 0.03
F153: 2024-06-14 | G153: 16.88349515 | H153: 1086.163103 | I153: 1152.120241 | J153: 2024-03-08 | K153: 960.2058309 | M153: 2024-04-09 | N153: 97.09266861 | O153: 111.9661174 | P153: 106.0772827 | Q153: 101.9315707 | AK153: 2024-04-08 | AL153: 97.72588167 | AM153: 132.8415453 | AN153: 105.003072 | AO153: 159.3323217 | AR153: 2024-04-08 | AS153: 0.05
F154: 2024-06-21 | G154: 17.61842376 | H154: 872.777782 | I154: 1155.982277 | J154: 2024-03-15 | K154: 990.934184 | M154: 2024-04-10 | N154: 96.45945556 | O154: 110.3829335 | P154: 106.1198914 | Q154: 103.0998758 | AK154: 2024-04-09 | AL154: 97.09266861 | AM154: 130.7631899 | AN154: 104.4213375 | AO154: 161.6084977 | AR154: 2024-04-09 | AS154: 0.05
F155: 2024-06-28 | G155: 18.25403769 | H155: 809.113876 | I155: 1167.215314 | J155: 2024-03-22 | K155: 979.1185091 | M155: 2024-04-11 | N155: 96.54388396 | O155: 109.8162602 | P155: 106.1625171 | Q155: 103.3258024 | AK155: 2024-04-10 | AL155: 96.45945556 | AM155: 124.2683295 | AN155: 103.839603 | AO155: 157.2078907 | AR155: 2024-04-10 | AS155: 0.05
F156: 2024-07-05 | G156: 17.87664192 | H156: 836.178003 | I156: 1139.93278 | J156: 2024-03-29 | K156: 1011.665058 | M156: 2024-04-12 | N156: 94.17988855 | O156: 108.5661292 | P156: 106.20516 | Q156: 104.544992 | AK156: 2024-04-11 | AL156: 96.54388396 | AM156: 124.0085351 | AN156: 104.227426 | AO156: 155.8421851 | AR156: 2024-04-11 | AS156: 0.05
F157: 2024-07-12 | G157: 18.14479155 | H157: 502.48015 | I157: 1097.664215 | J157: 2024-04-05 | K157: 1058.421029 | M157: 2024-04-15 | N157: 97.47259644 | O157: 108.0384099 | P157: 106.2478201 | Q157: 105.3225051 | AK157: 2024-04-12 | AL157: 94.17988855 | AM157: 124.2683295 | AN157: 101.9004881 | AO157: 154.3247344 | AR157: 2024-04-12 | AS157: 0.05
F158: 2024-07-19 | G158: 18.66122787 | H158: 779.415046 | I158: 1031.362489 | J158: 2024-04-12 | K158: 1034.060738 | M158: 2024-04-16 | N158: 94.64424479 | O158: 107.2235826 | P158: 106.2904971 | Q158: 107.1319533 | AK158: 2024-04-15 | AL158: 97.47259644 | AM158: 124.6147221 | AN158: 105.5848064 | AO158: 155.0834598 | AR158: 2024-04-15 | AS158: 0.05
F159: 2024-07-26 | G159: 18.19444889 | H159: 1196.718654 | I159: 992.5636079 | J159: 2024-04-19 | K159: 1072.177188 | M159: 2024-04-17 | N159: 95.02417263 | O159: 107.0361225 | P159: 106.3331914 | Q159: 106.7940811 | AK159: 2024-04-16 | AL159: 94.64424479 | AM159: 122.709563 | AN159: 102.6761341 | AO159: 152.5037936 | AR159: 2024-04-16 | AS159: 0.05
F160: 2024-08-02 | G160: 17.21123358 | H160: 1117.359322 | I160: 998.1131684 | J160: 2024-04-26 | K160: 1139.464364 | M160: 2024-04-18 | N160: 95.08327251 | O160: 107.0576985 | P160: 106.3759029 | Q160: 106.8816022 | AK160: 2024-04-17 | AL160: 95.02417263 | AM160: 124.0085351 | AN160: 102.8700456 | AO160: 150.5311077 | AR160: 2024-04-17 | AS160: 0.05
F161: 2024-08-09 | G161: 17.39 | H161: 933.845837 | I161: 976.1834947 | J161: 2024-05-03 | K161: 1141.121585 | M161: 2024-04-19 | N161: 97.36283952 | O161: 107.8577423 | P161: 106.4186314 | Q161: 106.3870062 | AK161: 2024-04-18 | AL161: 95.08327251 | AM161: 123.0559556 | AN161: 103.3548243 | AO161: 150.8345979 | AR161: 2024-04-18 | AS161: 0.05
F162: 2024-08-16 | G162: 17.22 | H162: 845.838122 | I162: 938.4037868 | J162: 2024-05-10 | K162: 1180.552393 | M162: 2024-04-22 | N162: 99.38912129 | O162: 108.2446618 | P162: 106.4613771 | Q162: 105.9270114 | AK162: 2024-04-19 | AL162: 97.36283952 | AM162: 127.1260681 | AN162: 106.4574081 | AO162: 156.7526555 | AR162: 2024-04-19 | AS162: 0.05
F163: 2024-08-23 | G163: 18.28 | H163: 907.014944 | I163: 893.1991957 | J163: 2024-05-17 | K163: 1221.008591 | M163: 2024-04-23 | N163: 95.38721478 | O163: 107.8782322 | P163: 106.50414 | Q163: 105.0782602 | AK163: 2024-04-22 | AL163: 99.38912129 | AM163: 127.9920495 | AN163: 107.9117443 | AO163: 160.3945372 | AR163: 2024-04-22 | AS163: 0.07
F164: 2024-08-30 | G164: 18.3 | H164: 947.987387 | I164: 899.2634122 | J164: 2024-05-24 | K164: 1228.890331 | M164: 2024-04-24 | N164: 93.00633369 | O164: 107.5270687 | P164: 106.5469201 | Q164: 105.0090574 | AK164: 2024-04-23 | AL164: 95.38721478 | AM164: 124.8745165 | AN164: 104.7122047 | AO164: 138.0880121 | AR164: 2024-04-23 | AS164: 0.07
F165: 2024-09-06 | G165: 18.17 | H165: 1050.44031 | I165: 914.2563489 | J165: 2024-05-31 | K165: 1197.067094 | M165: 2024-04-25 | N165: 92.34779211 | O165: 107.4450834 | P165: 106.5897174 | Q165: 105.186135 | AK165: 2024-04-24 | AL165: 93.00633369 | AM165: 123.7487407 | AN165: 101.9974439 | AO165: 132.9286798 | AR165: 2024-04-24 | AS165: 0.15
F166: 2024-09-13 | G166: 18.8 | H166: 972.424669 | I166: 905.5072386 | J166: 2024-06-07 | K166: 1183.992178 | M166: 2024-04-26 | N166: 94.37407389 | O166: 109.0662471 | P166: 106.6325319 | Q166: 104.1786245 | AK166: 2024-04-25 | AL166: 92.34779211 | AM166: 121.9301797 | AN166: 100.9309307 | AO166: 128.831563 | AR166: 2024-04-25 | AS166: 0.15
F167: 2024-09-20 | G167: 18.05 | H167: 1304.373678 | I167: 938.7069229 | J167: 2024-06-14 | K167: 1152.120241 | M167: 2024-04-29 | N167: 94.22210276 | O167: 109.7778493 | P167: 106.6753635 | Q167: 104.1195986 | AK167: 2024-04-26 | AL167: 94.37407389 | AM167: 122.2765723 | AN167: 103.1609128 | AO167: 128.7225877 | AR167: 2024-04-26 | AS167: 0.14
F168: 2024-09-27 | G168: 18.48 | H168: 482.341209 | I168: 913.5705639 | J168: 2024-06-21 | K168: 1155.982277 | M168: 2024-04-30 | N168: 92.49976324 | O168: 108.5472513 | P168: 106.7182123 | Q168: 105.2655146 | AK168: 2024-04-29 | AL168: 94.22210276 | AM168: 123.0559556 | AN168: 103.3548243 | AO168: 128.8795664 | AR168: 2024-04-29 | AS168: 0.15
J169: 2024-06-28 | K169: 1167.215314 | M169: 2024-05-01 | AK169: 2024-04-30 | AL169: 92.49976324 | AM169: 120.5446095 | AN169: 102.5791783 | AO169: 124.1702035 | AR169: 2024-04-30 | AS169: 0.15
J170: 2024-07-05 | K170: 1139.93278 | M170: 2024-05-02 | N170: 94.37407389 | O170: 109.5799847 | P170: 106.7610785 | Q170: 104.1786245 | AK170: 2024-05-01 | AR170: 2024-05-01
J171: 2024-07-12 | K171: 1097.664215 | M171: 2024-05-03 | N171: 99.59174947 | O171: 110.7750854 | P171: 106.8039618 | Q171: 103.1283711 | AK171: 2024-05-02 | AL171: 94.37407389 | AM171: 121.4105909 | AN171: 105.1000277 | AO171: 125.2690548 | AR171: 2024-05-02 | AS171: 0.15
J172: 2024-07-19 | K172: 1031.362489 | M172: 2024-05-06 | N172: 99.49043538 | O172: 110.7380364 | P172: 106.8468623 | Q172: 103.2484582 | AK172: 2024-05-03 | AL172: 99.59174947 | AM172: 123.4023481 | AN172: 110.7234609 | AO172: 125.5830123 | AR172: 2024-05-03 | AS172: 0.15
J173: 2024-07-26 | K173: 992.5636079 | M173: 2024-05-07 | N173: 97.81875292 | O173: 111.3800489 | P173: 106.88978 | Q173: 103.0103194 | AK173: 2024-05-06 | AL173: 99.49043538 | AM173: 123.1425537 | AN173: 110.6265052 | AO173: 126.2109274 | AR173: 2024-05-06 | AS173: 0.15
J174: 2024-08-02 | K174: 998.1131684 | M174: 2024-05-08 | N174: 98.52795154 | O174: 111.6131436 | P174: 106.932715 | Q174: 103.5741182 | AK174: 2024-05-07 | AL174: 97.81875292 | AM174: 121.4971891 | AN174: 109.6569477 | AO174: 125.7399911 | AR174: 2024-05-07 | AS174: 0.15
J175: 2024-08-09 | K175: 976.1834947 | M175: 2024-05-09 | N175: 98.02138109 | O175: 110.4989594 | P175: 106.9747071 | Q175: 104.9785268 | AK175: 2024-05-08 | AL175: 98.52795154 | AM175: 121.7569835 | AN175: 109.947815 | AO175: 126.5248849 | AR175: 2024-05-08 | AS175: 0.15
J176: 2024-08-16 | K176: 938.4037868 | M176: 2024-05-10 | N176: 96.95758316 | O176: 109.9914368 | P176: 107.0167156 | Q176: 104.7485294 | AK176: 2024-05-09 | AL176: 98.02138109 | AM176: 120.198217 | AN176: 109.2691247 | AO176: 125.5830123 | AR176: 2024-05-09 | AS176: 0.15
J177: 2024-08-23 | K177: 893.1991957 | M177: 2024-05-13 | N177: 97.81875292 | O177: 110.4700391 | P177: 107.0587407 | Q177: 104.64269 | AK177: 2024-05-10 | AL177: 96.95758316 | AM177: 119.8518244 | AN177: 107.6208771 | AO177: 124.9550973 | AR177: 2024-05-10 | AS177: 0.15
J178: 2024-08-30 | K178: 899.2634122 | M178: 2024-05-14 | N178: 97.81875292 | O178: 110.7809642 | P178: 107.1007822 | Q178: 104.528709 | AK178: 2024-05-13 | AL178: 97.81875292 | AM178: 122.4497686 | AN178: 108.8813018 | AO178: 125.2690548 | AR178: 2024-05-13 | AS178: 0.15
J179: 2024-09-06 | K179: 914.2563489 | M179: 2024-05-15 | N179: 100.5542333 | O179: 110.3603921 | P179: 107.1428402 | Q179: 104.6650791 | AK179: 2024-05-14 | AL179: 97.81875292 | AM179: 120.3714133 | AN179: 108.6873903 | AO179: 124.0132247 | AR179: 2024-05-14 | AS179: 0.15
J180: 2024-09-13 | K180: 905.5072386 | M180: 2024-05-16 | N180: 103.0719428 | O180: 110.5810912 | P180: 107.1849148 | Q180: 104.3536667 | AK180: 2024-05-15 | AL180: 100.5542333 | AM180: 119.4254112 | AN180: 111.0143281 | AO180: 124.484161 | AR180: 2024-05-15 | AS180: 0.15
J181: 2024-09-20 | K181: 938.7069229 | M181: 2024-05-17 | N181: 100.4514697 | O181: 110.4665221 | P181: 107.2270059 | Q181: 104.1236694 | AK181: 2024-05-16 | AL181: 103.0719428 | AM181: 121.3427917 | AN181: 112.6903882 | AO181: 125.112076 | AR181: 2024-05-16 | AS181: 0.15
J182: 2024-09-27 | K182: 913.5705639 | M182: 2024-05-20 | N182: 99.06416037 | O182: 110.1219013 | P182: 107.2691135 | Q182: 103.9771224 | AK182: 2024-05-17 | AL182: 100.4514697 | AM182: 122.3471338 | AN182: 111.4086952 | AO182: 124.9550973 | AR182: 2024-05-17 | AS182: 0.13
M183: 2024-05-21 | N183: 97.36856011 | O183: 109.8293627 | P183: 107.3112376 | Q183: 103.8794244 | AK183: 2024-05-20 | AL183: 99.06416037 | AM183: 122.9862606 | AN183: 109.9298187 | AO183: 127.9376938 | AR183: 2024-05-20 | AS183: 0.12
M184: 2024-05-22 | N184: 95.3646689 | O184: 108.3109241 | P184: 107.3533782 | Q184: 104.8258737 | AK184: 2024-05-21 | AL184: 97.36856011 | AM184: 124.0819066 | AN184: 108.549534 | AO184: 130.1353965 | AR184: 2024-05-21 | AS184: 0.12
M185: 2024-05-23 | N185: 94.79946881 | O185: 107.5173366 | P185: 107.3955354 | Q185: 104.7057866 | AK185: 2024-05-22 | AL185: 95.3646689 | AM185: 121.6167032 | AN185: 106.3805152 | AO185: 128.2516514 | AR185: 2024-05-22 | AS185: 0.12
M186: 2024-05-24 | N186: 96.18677811 | O186: 107.1519932 | P186: 107.4377092 | Q186: 104.8380859 | AK186: 2024-05-23 | AL186: 94.79946881 | AM186: 119.6080189 | AN186: 105.591781 | AO186: 126.0539486 | AR186: 2024-05-23 | AS186: 0.12
M187: 2024-05-27 | N187: 95.10775977 | O187: 107.3158689 | P187: 107.4798995 | Q187: 105.2370194 | AK187: 2024-05-24 | AL187: 96.18677811 | AM187: 122.5297415 | AN187: 107.9579834 | AO187: 124.484161 | AR187: 2024-05-24 | AS187: 0.13
M188: 2024-05-28 | N188: 94.90223247 | O188: 106.6985528 | P188: 107.5221065 | Q188: 104.8991472 | AK188: 2024-05-27 | AL188: 95.10775977 | AM188: 121.9819185 | AN188: 107.2678411 | AO188: 125.7399911 | AR188: 2024-05-27 | AS188: 0.13
M189: 2024-05-29 | N189: 93.72045047 | O189: 105.7742596 | P189: 107.56433 | Q189: 105.7824998 | AK189: 2024-05-28 | AL189: 94.90223247 | AM189: 121.5253993 | AN189: 105.9861481 | AO189: 124.1702035 | AR189: 2024-05-28 | AS189: 0.13
M190: 2024-05-30 | AK190: 2024-05-29 | AL190: 93.72045047 | AM190: 120.7949687 | AN190: 105.591781 | AO190: 121.9725007 | AR190: 2024-05-29 | AS190: 0.12
M191: 2024-05-31 | N191: 93.05248673 | O191: 105.2491349 | P191: 107.6065701 | Q191: 106.6862063 | AK191: 2024-05-30 | AR191: 2024-05-30
M192: 2024-06-03 | N192: 90.38063179 | O192: 105.1918029 | P192: 107.6488267 | Q192: 106.5986851 | AK192: 2024-05-31 | AL192: 93.05248673 | AM192: 119.4254112 | AN192: 105.591781 | AO192: 118.8329254 | AR192: 2024-05-31 | AS192: 0.11
M193: 2024-06-04 | N193: 89.35299527 | O193: 104.9939556 | P193: 107.6911 | Q193: 107.2377928 | AK193: 2024-06-03 | AL193: 90.38063179 | AM193: 115.8645618 | AN193: 102.9298034 | AO193: 118.9899042 | AR193: 2024-06-03 | AS193: 0.11
M194: 2024-06-05 | N194: 88.6336497 | O194: 104.6536965 | P194: 107.7333898 | Q194: 107.5512406 | AK194: 2024-06-04 | AL194: 89.35299527 | AM194: 114.129789 | AN194: 102.1410692 | AO194: 117.4201165 | AR194: 2024-06-04 | AS194: 0.11
M195: 2024-06-06 | N195: 88.78779518 | O195: 105.9393507 | P195: 107.7756964 | Q195: 107.2255806 | AK195: 2024-06-05 | AL195: 88.6336497 | AM195: 113.8558775 | AN195: 100.4650092 | AO195: 114.43752 | AR195: 2024-06-05 | AS195: 0.1
M196: 2024-06-07 | N196: 87.19495858 | O196: 104.1018928 | P196: 107.8180194 | Q196: 107.4718609 | AK196: 2024-06-06 | AL196: 88.78779518 | AM196: 115.773258 | AN196: 100.3664175 | AO196: 114.9084563 | AR196: 2024-06-06 | AS196: 0.05
M197: 2024-06-10 | N197: 86.57837667 | O197: 104.0952726 | P197: 107.8603592 | Q197: 109.2304248 | AK197: 2024-06-07 | AL197: 87.19495858 | AM197: 113.581966 | AN197: 98.59176568 | AO197: 112.7107536 | AR197: 2024-06-07 | AS197: 0.04
M198: 2024-06-11 | N198: 88.6336497 | O198: 104.8500008 | P198: 107.9027155 | Q198: 108.9414015 | AK198: 2024-06-10 | AL198: 86.57837667 | AM198: 112.7602315 | AN198: 98.29599038 | AO198: 110.6700296 | AR198: 2024-06-10 | AS198: 0.12
M199: 2024-06-12 | N199: 89.25023162 | O199: 103.3854202 | P199: 107.9450885 | Q199: 109.6883841 | AK199: 2024-06-11 | AL199: 88.6336497 | AM199: 112.2124085 | AN199: 99.77486687 | AO199: 111.9258598 | AR199: 2024-06-11 | AS199: 0.12
M200: 2024-06-13 | N200: 89.04470431 | O200: 103.0677801 | P200: 107.9874781 | Q200: 109.8573202 | AK200: 2024-06-12 | AL200: 89.25023162 | AM200: 108.742863 | AN200: 99.87345864 | AO200: 110.6700296 | AR200: 2024-06-12 | AS200: 0.12
M201: 2024-06-14 | N201: 87.34910406 | O201: 103.1495413 | P201: 108.0298843 | Q201: 109.1571513 | AK201: 2024-06-13 | AL201: 89.04470431 | AM201: 108.6515591 | AN201: 99.57768334 | AO201: 112.3967961 | AR201: 2024-06-13 | AS201: 0.11
... 83 more rows

Sheet Base Ibov
F1: Planilha Auxiliar Não Modificar
G2: ='Lâmina De RI'!$C$5 -> 2024-09-24
B3: =_xll.ECODATASET("ibov","ph","LATEST","1D") ->  | C3: Descrição | D3: Classe | E3: 2024-09-30 | F3: =_xll.ECONOMATICA($B$4:$B$150,"Segment Bovespa",,,,,,,,"TRUE","SETOR") ->  | G3: =_xll.ECONOMATICA($B$4:$B$150,"return","1D",$G$2,,,,"DECIMAL",,"TRUE","RETORNO") ->  | I3: Setor | J3: Setor Setor | L3: Ranking | P3: PEERS
B4: VALE3<XBSP> | C4: Vale | D4: ON | E4: 11.412 | F4: Minerais metálicos | G4: 0.04884408135 | I4: =IF(_xlfn.UNIQUE($F$4:$F$150)=0,"",_xlfn.UNIQUE($F$4:$F$150)) -> Minerais metálicos | J4: =IF(I4="","",AVERAGEIF($F:$F,I4,$G:$G)) -> 0.04437832038 | L4: Maior | M4: =LARGE($J:$J,1) -> 0.0617778016 | N4: =_xlfn.XLOOKUP($M$4,$J:$J,$I:$I,,0) -> Siderurgia | P4: =_xll.ECONOMATICA('Lâmina De RI'!$C$3,"Segment Bovespa") -> 
B5: PETR4<XBSP> | C5: Petrobras | D5: PN | E5: 7.539 | F5: Exploração refino e distribuição | G5: 0.004095004095 | I5: Exploração refino e distribuição | J5: =IF(I5="","",AVERAGEIF($F:$F,I5,$G:$G)) -> 0.0298385046 | L5: Menor | M5: =SMALL($J:$J,1) -> -0.05037313433 | N5: =_xlfn.XLOOKUP($M$5,$J:$J,$I:$I,,0) -> Transporte aéreo
B6: ITUB4<XBSP> | C6: ItauUnibanco | D6: PN | E6: 7.391 | F6: Bancos | G6: -0.0002799552058 | I6: Bancos | J6: -0.0004758716311
B7: PETR3<XBSP> | C7: Petrobras | D7: ON | E7: 4.571 | F7: Exploração refino e distribuição | G7: 0.007462686566 | I7: Energia elétrica | J7: -0.000574282318 | L7: =AVERAGE($M$10:$M$17) ->  | N7: Imóveis | P7: =_xll.ECONOMATICA($Q$7:$Q$50,"MarketCapitaliz",,"LATEST",,,,,,"FALSE") ->  | Q7: =_xll.ECOSECURITIES("STOCK","ACTIVE","TRUE","BRA","XBSP","FALSE",,"Segment Bovespa="&$P$4) ->  | R7: 1 | S7: =IFERROR(LARGE($P:$P,R7),"") ->  | T7: =VLOOKUP($S7,$P:$Q,2,0) ->  | U7: =_xll.ECONOMATICA($T$7:$T$11,"TICKER",,,,,,,,"FALSE") -> 
B8: BBAS3<XBSP> | C8: Brasil | D8: ON | E8: 3.618 | F8: Bancos | G8: -0.0007299270073 | I8: Motores compressores e outros | J8: 0.01969808542 | P8: 37527900566 | Q8: GGBR4<XBSP> | R8: 2 | S8: =IFERROR(LARGE($P:$P,R8),"") ->  | T8: =VLOOKUP($S8,$P:$Q,2,0) ->  | U8: CSNA3
B9: BBDC4<XBSP> | C9: Bradesco | D9: PN | E9: 3.424 | F9: Bancos | G9: -0.001391788447 | I9: Água e saneamento | J9: -0.009720145268 | M9: =_xll.ECONOMATICA($L$10:$L$17,"return","1D",$G$2,,,,"DECIMAL",,"TRUE","RETORNO") ->  | P9: 11114419563 | Q9: GOAU4<XBSP> | R9: 3 | U9: GOAU4
B10: ELET3<XBSP> | C10: Eletrobras | D10: ON | E10: 3.27 | F10: Energia elétrica | G10: 0.002528445008 | I10: Serviços financeiros diversos | J10: 0.004464285714 | L10: SCAR3 | P10: 16072258638 | Q10: CSNA3<XBSP> | R10: 4 | U10: USIM5
B11: WEGE3<XBSP> | C11: Weg | D11: ON | E11: 3.202 | F11: Motores compressores e outros | G11: 0.01969808542 | I11: Cervejas e refrigerantes | J11: 0.0007843137246 | L11: ALSO3 | P11: 7317421386 | Q11: USIM5<XBSP> | R11: 5 | U11: FESA4
B12: SBSP3<XBSP> | C12: Sabesp | D12: ON | E12: 2.973 | F12: Água e saneamento | G12: -0.009720145268 | I12: Aluguel de carros | J12: 0.002816386767 | L12: IGTI3
B13: B3SA3<XBSP> | C13: B3 | D13: ON | E13: 2.867 | F13: Serviços financeiros diversos | G13: 0.004464285714 | I13: Serviços médico-hospitalares análises e diagnósticos | J13: 0.005248631508 | L13: MULT3
B14: ITSA4<XBSP> | C14: Itausa | D14: PN | E14: 2.787 | F14: Bancos | G14: 0.0009174311927 | I14: Carnes e derivados | J14: 0.001699696002 | L14: SYNE3
B15: ABEV3<XBSP> | C15: Ambev S/A | D15: ON | E15: 2.603 | F15: Cervejas e refrigerantes | G15: 0.0007843137246 | I15: Material aeronáutico e de defesa | J15: 0.01419590347
B16: BPAC11<XBSP> | C16: Btgp Banco | D16: UNT | E16: 1.96 | F16: Bancos | G16: -0.002744739249 | I16: Medicamentos e outros produtos | J16: -0.007345766984
B17: RENT3<XBSP> | C17: Localiza | D17: ON | E17: 1.939 | F17: Aluguel de carros | G17: 0.008663076564 | I17: Papel e celulose | J17: 0.01868907233
B18: EQTL3<XBSP> | C18: Equatorial | D18: ON | E18: 1.879 | F18: Energia elétrica | G18: 0.002461538463 | I18: Transporte ferroviário | J18: 0.01161616162
B19: RDOR3<XBSP> | C19: Rede D Or | D19: ON | E19: 1.691 | F19: Serviços médico-hospitalares análises e diagnósticos | G19: 0.01163888015 | I19: Seguradoras | J19: 0.006212307429
B20: JBSS3<XBSP> | C20: JBS | D20: ON | E20: 1.688 | F20: Carnes e derivados | G20: 0.00660169758 | I20: Telecomunicações | J20: 0.00812904651 | L20: SOMA3<XBSP>
B21: EMBR3<XBSP> | C21: Embraer | D21: ON | E21: 1.682 | F21: Material aeronáutico e de defesa | G21: 0.01419590347 | I21: Siderurgia | J21: 0.0617778016 | L21: GUAR3<XBSP>
B22: PRIO3<XBSP> | C22: Petrorio | D22: ON | E22: 1.654 | F22: Exploração refino e distribuição | G22: 0.04396590399 | I22: Tecidos vestuário e calçados | J22: 0.02250684579 | L22: LREN3<XBSP>
B23: RADL3<XBSP> | C23: RaiaDrogasil | D23: ON | E23: 1.596 | F23: Medicamentos e outros produtos | G23: -0.01117318436 | I23: Programas e serviços | J23: 0.01666901982 | L23: ARZZ3<XBSP>
B24: SUZB3<XBSP> | C24: Suzano S.A. | D24: ON | E24: 1.513 | F24: Papel e celulose | G24: 0.02633107454 | I24: Serviços de apoio e armazenagem | J24: 0.004054054054 | L24: AMAR3<XBSP>
B25: VBBR3<XBSP> | C25: Vibra | D25: ON | E25: 1.121 | F25: Exploração refino e distribuição | G25: 0.02781870895 | I25: Exploração de rodovias | J25: -0.007281553398
B26: RAIL3<XBSP> | C26: Rumo S.A. | D26: ON | E26: 1.118 | F26: Transporte ferroviário | G26: 0.01161616162 | I26: Produtos de uso pessoal | J26: -0.0073313783
B27: UGPA3<XBSP> | C27: Ultrapar | D27: ON | E27: 1.069 | F27: Exploração refino e distribuição | G27: 0.01894836571 | I27: Exploração de imóveis | J27: 0.005933421489
B28: BBSE3<XBSP> | C28: BBSeguridade | D28: ON | E28: 1.04 | F28: Seguradoras | G28: 0.00825505266 | I28: Alimentos | J28: 0.02231908822
B29: VIVT3<XBSP> | C29: Telef Brasil | D29: ON | E29: 1.039 | F29: Telecomunicações | G29: 0.00637174586 | I29: Incorporações | J29: 0.01051691019
B30: GGBR4<XBSP> | C30: Gerdau | D30: PN | E30: 1.024 | F30: Siderurgia | G30: 0.04171364149 | I30: Petroquímicos | J30: 0.02506666667
B31: ENEV3<XBSP> | C31: Eneva | D31: ON | E31: 1.016 | F31: Energia elétrica | G31: 0.01227436823 | I31: Açúcar e álcool | J31: 0.009297136481
B32: CMIG4<XBSP> | C32: Cemig | D32: PN | E32: 0.983 | F32: Energia elétrica | G32: -0.003061891633 | I32: Resseguradoras | J32: 0.01253573785
B33: BRFS3<XBSP> | C33: BRF SA | D33: ON | E33: 0.939 | F33: Carnes e derivados | G33: -0.006041079339 | I33: Agricultura | J33: 0.01632382011
B34: HAPV3<XBSP> | C34: Hapvida | D34: ON | E34: 0.939 | F34: Serviços médico-hospitalares análises e diagnósticos | G34: 0.004728132388 | I34: Eletrodomésticos | J34: 0.01696606786
B35: BBDC3<XBSP> | C35: Bradesco | D35: ON | E35: 0.891 | F35: Bancos | G35: -0.004640371229 | I35: Acessórios | J35: 0.009534286763
B36: CPLE6<XBSP> | C36: Copel | D36: PNB | E36: 0.806 | F36: Energia elétrica | G36: -0.00580270793 | I36: Serviços educacionais | J36: 0.02226620485
B37: LREN3<XBSP> | C37: Lojas Renner | D37: ON | E37: 0.783 | F37: Tecidos vestuário e calçados | G37: 0.05364201016 | I37: Transporte aéreo | J37: -0.05037313433
B38: KLBN11<XBSP> | C38: Klabin S/A | D38: UNT N2 | E38: 0.741 | F38: Papel e celulose | G38: 0.01104707012 | I38: Produtos diversos | J38: 0.01290322581
B39: TOTS3<XBSP> | C39: Totvs | D39: ON | E39: 0.718 | F39: Programas e serviços | G39: 0.01433566434 | I39: Calçados | J39: 0.002805049089
B40: TIMS3<XBSP> | C40: Tim | D40: ON | E40: 0.699 | F40: Telecomunicações | G40: 0.009886347159 | I40: Viagens e turismo | J40: -0.005347593583
B41: ENGI11<XBSP> | C41: Energisa | D41: UNT N2 | E41: 0.687 | F41: Energia elétrica | G41: 0.004632693579
B42: CSAN3<XBSP> | C42: Cosan | D42: ON | E42: 0.663 | F42: Exploração refino e distribuição | G42: 0.03836734694
B43: STBP3<XBSP> | C43: Santos Brp | D43: ON | E43: 0.588 | F43: Serviços de apoio e armazenagem | G43: 0.004054054054
B44: CCRO3<XBSP> | C44: CCR SA | D44: ON | E44: 0.569 | F44: Exploração de rodovias | G44: -0.007281553398
B45: ELET6<XBSP> | C45: Eletrobras | D45: PNB | E45: 0.552 | F45: Energia elétrica | G45: -0.003389830509
B46: NTCO3<XBSP> | C46: Grupo Natura | D46: ON | E46: 0.538 | F46: Produtos de uso pessoal | G46: -0.0073313783
B47: ALOS3<XBSP> | C47: Allos | D47: ON | E47: 0.518 | F47: Exploração de imóveis | G47: 0.003155996394
B48: EGIE3<XBSP> | C48: Engie Brasil | D48: ON | E48: 0.515 | F48: Energia elétrica | G48: 0.003221352967
B49: HYPE3<XBSP> | C49: Hypera | D49: ON | E49: 0.512 | F49: Medicamentos e outros produtos | G49: -0.003518349609
B50: ASAI3<XBSP> | C50: Assai | D50: ON | E50: 0.493 | F50: Alimentos | G50: 0.0368956743
B51: SANB11<XBSP> | C51: Santander BR | D51: UNT | E51: 0.478 | F51: Bancos | G51: 0.005538248528
B52: TRPL4<XBSP> | C52: Tran Paulist | D52: PN | E52: 0.448 | F52: Energia elétrica | G52: -0.0004101722725
B53: BRAV3<XBSP> | C53: Brava | D53: ON | E53: 0.386 | F53: Exploração refino e distribuição | G53: 0.08715083799
B54: MULT3<XBSP> | C54: Multiplan | D54: ON | E54: 0.386 | F54: Exploração de imóveis | G54: 0.006125574273
B55: CSNA3<XBSP> | C55: Sid Nacional | D55: ON | E55: 0.379 | F55: Siderurgia | G55: 0.09386281588
B56: TAEE11<XBSP> | C56: Taesa | D56: UNT N2 | E56: 0.348 | F56: Energia elétrica | G56: -0.004081632654
B57: FLRY3<XBSP> | C57: Fleury | D57: ON | E57: 0.347 | F57: Serviços médico-hospitalares análises e diagnósticos | G57: -0.0006211180134
B58: CXSE3<XBSP> | C58: Caixa Seguri | D58: ON | E58: 0.346 | F58: Seguradoras | G58: 0.004169562197
B59: CMIN3<XBSP> | C59: Csn Mineracao | D59: ON | E59: 0.327 | F59: Minerais metálicos | G59: 0.0410742496
B60: GOAU4<XBSP> | C60: Gerdau Met | D60: PN | E60: 0.318 | F60: Siderurgia | G60: 0.03474903475
B61: CPFE3<XBSP> | C61: CPFL Energia | D61: ON | E61: 0.291 | F61: Energia elétrica | G61: -0.002999400121
B62: AZZA3<XBSP> | C62: Azzas 2154 | D62: ON | E62: 0.267 | F62: Tecidos vestuário e calçados | G62: -0.008628318585
B63: CYRE3<XBSP> | C63: Cyrela Realt | D63: ON | E63: 0.248 | F63: Incorporações | G63: 0.01287766221
B64: RECV3<XBSP> | C64: Petrorecsa | D64: ON | E64: 0.235 | F64: Exploração refino e distribuição | G64: 0.01089918256
B65: BRKM5<XBSP> | C65: Braskem | D65: PNA | E65: 0.231 | F65: Petroquímicos | G65: 0.02506666667
B66: CRFB3<XBSP> | C66: Carrefour BR | D66: ON | E66: 0.215 | F66: Alimentos | G66: 0.04712643678
B67: BRAP4<XBSP> | C67: Bradespar | D67: PN | E67: 0.213 | F67: Minerais metálicos | G67: 0.0432166302
B68: IGTI11<XBSP> | C68: Iguatemi SA | D68: UNT | E68: 0.208 | F68: Exploração de imóveis | G68: 0.008518693799
B69: MRFG3<XBSP> | C69: Marfrig | D69: ON | E69: 0.197 | F69: Carnes e derivados | G69: -0.01208244492
B70: SMTO3<XBSP> | C70: Sao Martinho | D70: ON | E70: 0.178 | F70: Açúcar e álcool | G70: 0.009297136481
B71: IRBR3<XBSP> | C71: Irbbrasil Re | D71: ON | E71: 0.173 | F71: Resseguradoras | G71: 0.01253573785
B72: RAIZ4<XBSP> | C72: Raizen | D72: PN | E72: 0.168 | F72: Agricultura | G72: 0.0197368421
B73: MGLU3<XBSP> | C73: Magaz Luiza | D73: ON | E73: 0.165 | F73: Eletrodomésticos | G73: 0.01696606786
B74: VIVA3<XBSP> | C74: Vivara S.A. | D74: ON | E74: 0.159 | F74: Acessórios | G74: 0.009534286763
B75: SLCE3<XBSP> | C75: SLC Agricola | D75: ON | E75: 0.154 | F75: Agricultura | G75: 0.01291079812
B76: VAMO3<XBSP> | C76: Vamos | D76: ON | E76: 0.149 | F76: Aluguel de carros | G76: -0.00303030303
B77: AURE3<XBSP> | C77: Auren | D77: ON | E77: 0.143 | F77: Energia elétrica | G77: -0.01226415094
B78: USIM5<XBSP> | C78: Usiminas | D78: PNA | E78: 0.134 | F78: Siderurgia | G78: 0.07678571429
B79: MRVE3<XBSP> | C79: MRV | D79: ON | E79: 0.127 | F79: Incorporações | G79: 0.009589041096
B80: YDUQ3<XBSP> | C80: Yduqs Part | D80: ON | E80: 0.126 | F80: Serviços educacionais | G80: 0.02127659575
B81: COGN3<XBSP> | C81: Cogna ON | D81: ON | E81: 0.113 | F81: Serviços educacionais | G81: 0.02325581395
B82: AZUL4<XBSP> | C82: Azul | D82: PN | E82: 0.082 | F82: Transporte aéreo | G82: -0.05037313433
B83: LWSA3<XBSP> | C83: Lwsa | D83: ON | E83: 0.082 | F83: Programas e serviços | G83: 0.0190023753
B84: BEEF3<XBSP> | C84: Minerva | D84: ON | E84: 0.08 | F84: Carnes e derivados | G84: 0.01832061069
B85: PETZ3<XBSP> | C85: Petz | D85: ON | E85: 0.066 | F85: Produtos diversos | G85: 0.01290322581
B86: EZTC3<XBSP> | C86: Eztec | D86: ON | E86: 0.06 | F86: Incorporações | G86: 0.009084027251
B87: ALPA4<XBSP> | C87: Alpargatas | D87: PN | E87: 0.055 | F87: Calçados | G87: 0.002805049089
B88: PCAR3<XBSP> | C88: P.Acucar-Cbd | D88: ON | E88: 0.052 | F88: Alimentos | G88: -0.01706484642
B89: CVCB3<XBSP> | C89: Cvc Brasil | D89: ON | E89: 0.046 | F89: Viagens e turismo | G89: -0.005347593583
C90: Total | E90: 100
C92: Total Investido + Caixa (em milhares) | E92: =#NUM! -> 
C93: PL (em milhares) | E93: =#NUM! -> 
C95: Data de divulgação | E95: =#NUM! -> 
C96: Data da última retificação | E96: 45560
C97: Data informada pela fonte | E97: 45559

Sheet Versão (hidden)
A1: Versão | B1: v220422
